Workbook

Sheet Список команд
A2: № | B2: 1 | C2: команда | D2: Ураганы
A3: состав | C3: Мурин Е. Г. ; 10/5/1983; а-кмс/c-бр; ЛЭТИ; Спб
C4: Венидиктов Д.В. ; 7/4/1989; а-1/c-бр; Питер; Спб
A6: № | B6: 2 | C6: команда | D6: Энергия
A7: состав | C7: Гладков Алексей Павлович; 8/20/1988; а-3/с-бр; СКА Зеленоград; Мытищи
C8: Храмцова Мария Сергеевна; 6/11/1987; а-3/с-1; СКА Зеленоград; Екатеринбург
A10: № | B10: 3 | C10: команда | D10: цр псо
A11: состав | C11: Аксенов Адрей Валерьевич; 9/15/1988; а-2/с-бр; ; Москва
C12: Кокинов Вадим Петрович; 8/10/1984; а-3/с-бр; ; Москва
A14: № | B14: 4 | C14: команда | D14: Сибирский юмор
A15: состав | C15: Борисихин Алексей; 3/30/1986; а-2/с-бр; АК МАИ; Москва
C16: Марковских Павел; 4/14/1985; а-3/с-бр; АК МАИ; Москва
A18: № | B18: 5 | C18: команда | D18: Korolev Climbing School
A19: состав | C19: Осокин Сергей; 2/9/1987; а-1/с-бр; Korolev Climbing School; Королёв
C20: Жучихин Алексей; 2/23/1989; а-бр/с-1; Korolev Climbing School; Королёв
A22: № | B22: 6 | C22: команда | D22: JustForFun
A23: состав | C23: Скороходов Никита Сергеевич; 10/1/1985; а-1/с-бр; ; Липецк
C24: Гладышев Антон Александрович; 10/28/1985; а-2/с-1; ; Липецк
A26: № | B26: 7 | C26: команда | D26: ГК МГСУ
A27: состав | C27: Жердев Кирилл Валерьевич; 7/7/1993; а-3/c-бр; МГСУ; Оренбург
C28: Егоров Евгений Ростиславович; 1/14/1993; а-бр/с-бр; МГСУ; Зеленодольск
A30: № | B30: 8 | C30: команда | D30: M&M's
A31: состав | C31: Глотов Антон Николаевич; 6/3/1990; а-3/с-бр; Ирбис; Липецк
C32: Кирьянов Алексей Юрьевич; 3/3/1995; а-3/с-бр; Ирбис; Липецк
A34: № | B34: 9 | C34: команда | D34: Экс-МГСУ
A35: состав | C35: Тимохов Павел Геннадьевич; 8/4/1986; а-2/с-бр; ; Москва
C36: Лаптев Дмитрий Павлович; 8/2/1987; а-3/с-бр; ; Москва
A38: № | B38: 10 | C38: команда | D38: ГК МГСУ
A39: состав | C39: Лаптев Дмитрий Павлович; 8/2/1986; а-2/с-бр; МГСУ; Москва
C40: Тимохов Павел Геннадиевич; 8/4/1986; а-2/с-бр; МГСУ; Москва
A42: № | B42: 11 | C42: команда | D42: Королев
A43: состав | C43: Волков Петр Александрович; 7/10/1987; а-бр/с-1; Korolev Climbing Team;
C44: Волков Павел Александрович; 7/10/1987; а-бр/с-2; Korolev Climbing Team;
A46: № | B46: 12 | C46: команда | D46: Хухтилампи
A47: состав | C47: Воликов Александр Борисович; 2/19/1989; а-2/с-бр; АК МГУ; Подольск
C48: Архиповский Илья Алексеевич; 3/4/1990; а-2/с-бр; АК МГУ; Москва
A50: № | B50: 13 | C50: команда | D50: Странник
A51: состав | C51: Пудовкин Алексей Вячеславович; 7/24/1985; а-3/с-бр; ;
C52: Ястребов Денис Сергеевич; 1/28/1983; а-3/с-бр; ;
A54: № | B54: 14 | C54: команда | D54: АК МАИ
A55: состав | C55: Горбунов Андрей Иванович; 8/17/1983; а-1/с-бр; АК МАИ; Москва
C56: Кравец; 11/4/1986; а-1/с-бр; АК МАИ; Москва
A58: № | B58: 15 | C58: команда | D58: вега
A59: состав | C59: Борисенко Евгений Викторович; 9/24/1980; а-3/с-бр; ВФА; Воронеж
C60: Арнаутов Даниил; 3/26/1989; а-3/с-бр; ВФА; Воронеж
A62: № | B62: 16 | C62: команда | D62: МЭИ
A63: состав | C63: Жарков А.А.; 10/22/1981; а-1/с-бр; МЭИ; Москва
C64: Жаркова В.В.; 9/6/1982; а-1/с-бр; МЭИ; Бутово
A66: № | B66: 17 | C66: команда | D66: ЙЫЛДЫЗ
A67: состав | C67: Шепелев Дмитрий Алексеевич; 5/31/2018; а-3/с-бр; МАИ; Москва
C68: Синегуб Ольга Игоревна; 3/10/1989; а-2/с-2; МАИ; Москва
A70: № | B70: 18 | C70: команда | D70: Питер1
A71: состав | C71: Зыбалов Антон Сергеевич; 5/8/1988; а-кмс/с-2; Горняк; Санкт-Петербург
C72: Пеняев Илья Николаевич; 6/17/1990; а-2/с-бр; Горняк; Санкт-Петербург
A74: № | B74: 19 | C74: команда | D74: Позитрон/АК МАИ
A75: состав | C75: Орлов В.С.; 7/5/1981; а-3/с-бр; АК МАИ; Дедовск
C76: Снинцкий Б.; 2/21/1987; а-2/с-бр; АК МАИ; Москва
A78: № | B78: 20 | C78: команда | D78: Стасон и я
A79: состав | C79: Поплавский Станислав; 4/4/1982; а-бр/с-мс; ;Москва
C80: Дульнев Егор; 7/15/1972; а-бр/с-бр; ;Москва
A82: № | B82: 21 | C82: команда | D82: Shlang-Team-1
A83: состав | C83: Задворный Андрей Владимирович; 12/19/1983; а-2/с-бр; КАиС МЭИ; Реутов
C84: Орликов Матвей Александрович; 2/22/1988; а-2/с-бр; КАиС МЭИ; Москва
A86: № | B86: 22 | C86: команда | D86: Штурм
A87: состав | C87: Якупова Талия Ильдароовна; 6/1/1991; а-бр/с-2; ;
C88: Идрисова Динара Султанбейговна; 12/26/1988; а-бр/с-бр; ;
A90: № | B90: 23 | C90: команда | D90: Воронеж
A91: состав | C91: Рогатнев Дмитрий Сергеевич; 3/27/1985; а-2/с-2; ВРОО "СФА" ; Воронеж
C92: Курачёва Екатерина Сергеевна; 10/24/1983; а-2/с-2; ВРОО "СФА"; Воронеж
A94: № | B94: 24 | C94: команда | D94: Мэи
A95: состав | C95: Дорфман Роман; 1/1/2012; а-2/с-бр; Мэи; Москва
C96: Романов Алексей; 1/1/1910; а-1/с-бр; Мэи; Москва
A98: № | B98: 25 | C98: команда | D98: МЭИ-1
A99: состав | C99: Леонкин Сергей Сергеевич; 10/26/1985; а-1/с-бр; КАиС МЭИ; Москва
C100: Якобчук Денис Леонидович; 10/10/2013; а-1/с-бр; КАиС МЭИ; Москва
A102: № | B102: 26 | C102: команда | D102: а/к МГУ
A103: состав | C103: Иванов Александр Сергеевич; 11/9/1972; а-мс/с-бр; а/к МГУ; Москва
C104: Люлюкин Иван Сергеевич; 12/2/1983; а-кмс/с-бр; а/к МГУ; Москва
A106: № | B106: 27 | C106: команда | D106: МГУ-СПЕЛЕО
A107: состав | C107: Сизикова; 3/18/1981; а-3/с-3; МГУ-спелео; Москва
C108: Севастьянов; 8/17/1988; а-3/с-3; МГУ-спелео; Москва
A110: № | B110: 28 | C110: команда | D110: Воронеж-6
A111: состав | C111: Хондо Светлана Анатольевна; 10/6/1979; а-2/с-3; ;Воронеж
C112: Ревякина Инна Юрьевна; 9/18/1984; а-2/с-2; ;Воронеж
A114: № | B114: 29 | C114: команда | D114: КАиС МЭИ
A115: состав | C115: Игумнов Александр; 5/25/1984; а-1/с-бр; КАиС МЭИ; Москва
C116: Александров Илья; 3/10/1963; а-2/с-бр; КАиС МЭИ; Москва
A118: № | B118: 30 | C118: команда | D118: Академия Приключений
A119: состав | C119: Тищенко Владимир; 3/7/1980; а-3/с-бр; МЭИ; Москва
C120: Жерноклеев Андрей
A122: № | B122: 31 | C122: команда | D122: МакГУ
A123: состав | C123: Мулюкин павел Александрович; 7/23/1983; а-2/с-бр; ак МГУ; Москва
C124: Жегусов Ярослав Олегович; 3/25/1986; а-2/с-бр; ак МГУ; Москва
A126: № | B126: 32 | C126: команда | D126: Black Ice
A127: состав | C127: Микулин Артём
C128: Калинин Артем; 11/11/1997; а-бр/с-бр; Black Ice; Москва
A130: № | B130: 33 | C130: команда | D130: Енотовидные коты
A131: состав | C131: Зуев Антон Анатольевич; 6/16/1986; а-1/с-бр; ;Воронеж
C132: Сурженко Олеся Вячеславовна; 2/26/1985; а-2/с-бр; МАИ; Мытищи
A134: № | B134: 34 | C134: команда | D134: verticalwork
A135: состав | C135: Егоров Борис Олегович; 2/9/1989; а-бр/с-кмс; вертикаль; москва
C136: Мурзаев Владимир Александрович; 1/10/1987; а-бр/с-бр; ;москва
A138: № | B138: 35 | C138: команда | D138: Демо ошибка
A139: состав | C139: Корнилов А.М.; 1/21/1985; а-1/с-бр; Демченко; Москва
C140: Дунина Н.Л.; 2/22/1986; а-бр/с-бр; МГУ; Москва
A142: № | B142: 36 | C142: команда | D142: КАиС МЭИ
A143: состав | C143: Мельников И. А.; 4/23/1989; а-2/с-бр; КАиС МЭИ; Москва
C144: Яроцкая Н. Б.; 8/9/1980; а-2/с-бр; КАиС МЭИ; Москва
A146: № | B146: 37 | C146: команда | D146: БаранМартын
A147: состав | C147: Овечкин Тарас Викторович; 1/14/1984; а-2/с-бр; Демченко; Москва
C148: Мартынова Полина Леонидовна; 1/4/1988; а-3/с-бр; Демченко; Москва
A150: № | B150: 38 | C150: команда | D150: МГУ-спелео
A151: состав | C151: Севастьянов Алексей; 8/16/1988; а-бр/с-бр; ;
C152: Панасенко Наталья; 3/18/1981; а-бр/с-бр; ;
A154: № | B154: 39 | C154: команда | D154: Patagonia
A155: состав | C155: Рубцова Евгения Вадимовна; 5/7/1985; а-бр/с-бр; Зеленоградский альпклуб; Москва
C156: Штельмаченко Владимир Генадьевич; 12/7/1968; а-бр/с-бр; Зеленоградский альпклуб; Москва
A158: № | B158: 40 | C158: команда | D158: МГСУ-3
A159: состав | C159: Простакишин Дмитрий Александрович; 8/9/1993; а-бр/с-бр; МГСУ; Москва
C160: Мясоедов Игорь Алексеевич; 6/7/1994; а-бр/с-бр; МГСУ; Москва
A162: № | B162: 41 | C162: команда | D162: промальпсоюз
A163: состав | C163: ан константин радиевич; 12/29/2013; а-кмс/с-1; ;воронеж
C164: максин александр александрович; 9/15/1987; а-кмс/с-2; ;воронеж
A166: № | B166: 42 | C166: команда | D166: БЕДА
A167: состав | C167: Куликова Ольга Яковлевна; 10/9/1987; а-2/с-бр; МГУ; Москва
C168: Дудкина Алёна Владимировна; 7/5/1993; а-3/с-бр; МАИ; Москва
A170: № | B170: 43 | C170: команда | D170: Руки-Крюки
A171: состав | C171: Торшин Михаил Викторович; 1/20/1987; а-2/c-1; ВРОО СФА; Воронеж
C172: Барабанов Тимур Михайлович; 3/10/1986; а-кмс/с-1; ВРОО СФА; Воронеж
A174: № | B174: 44 | C174: команда | D174: ЗМЭИ
A175: состав | C175: Каячев А.И.; 1/29/1955; а-1/с-2; Альпклуб МЭИ; Москва
C176: Пронин С.А.; 12/8/1982; а-3/с-2; Альпклуб МЭИ; Москва
A178: № | B178: 45 | C178: команда | D178: а/к МГТУ
A179: состав | C179: Лавров Александр Геннадьевич; 9/22/1987; а-2/с-бр; а/к МГТУ; Москва
C180: Щетинкина Светлана Сергеевна; 10/23/1989; а-2/с-бр; а/к МГТУ; Москва
A182: № | B182: 46 | C182: команда | D182: Абрис
A183: состав | C183: Фёдоров Владислав Владимирович; 12/25/1977; а-кмс/с-1; Абрис; Иваново
C184: Гуржов Сергей Викторович; 7/22/1971; а-кмс/с-бр; Абрис; Ковров
A186: № | B186: 47 | C186: команда | D186: Безпятиполпятого
A187: состав | C187: Замараев Дмитрий; 5/11/1988; а-бр/с-бр; ;Москва
C188: Маслов Владимир; 11/18/1985; а-бр/с-бр; ;Москва
A190: № | B190: 48 | C190: команда | D190: Юрцы
A191: состав | C191: Бояров Юрий; 12/19/1978; а-бр/с-кмс; КС ДДС; Москва
C192: Яковлев Юрий; 10/8/1986; а-бр/с-бр; ;Москва
A194: № | B194: 49 | C194: команда | D194: only armor steel :)
A195: состав | C195: Кочетков Андрей; 9/5/1985; а-бр/с-бр; ;Москва
C196: Шарифуллин Руслан; 12/8/1979; а-1/с-бр; Зеленоградский альпклуб; Зеленоград
A198: № | B198: 50 | C198: команда | D198: Титановый Штырь
A199: состав | C199: Ташоян Арсений; 9/9/1980; а-2/с-бр; ЦСКА им.Демченко; Москва
C200: Ившин Алексей; 1/31/1977; а-2/с-1; ЦСКА им.Демченко; Королев
A202: № | B202: 51 | C202: команда | D202: Base&Climb
A203: состав | C203: Лебедев Андрей; 1/1/2001; а-бр/с-бр; АдреналинБейс; Москва
C204: Яна Ковалева; 12/3/2001; а-бр/с-кмс; ClimbClub; Краснодар
A206: № | B206: 52 | C206: команда | D206: Вася&Co
A207: состав | C207: Павлов Вася; 6/5/1989; а-2/с-2; МГТУ Баумана; Москва
C208: Рудкевич; 11/1/1978; а-1/с-2; МГТУ Баумана; Москва
A210: № | B210: 53 | C210: команда | D210: МОЛЬ
A211: состав | C211: Воропаева Ольга Васильевна; 5/9/1981; а-1/с-1; ВРОО"СФА"; Воронеж
C212: Завалишин Максим Алексеевич; 1/3/1983; а-1/с-3; ВРОО"СФА"; Воронеж
A214: № | B214: 54 | C214: команда | D214: Босоногие
A215: состав | C215: Ермолаева Елена Ивановна; 6/19/1964; а-2/с-кмс; АК МГУ; Москва
C216: Поляков Илья Андреевич; 6/30/1984; а-3/с-бр; АК МГУ; Москва
A218: № | B218: 55 | C218: команда | D218: Без обид ;-)
A219: состав | C219: Хорощенко Игорь Андреевич; 5/21/1979; а-2/с-кмс; ВРОО ФСА; Воронеж
C220: Торшин Александр Викторович; 1/8/1989; а-бр/с-бр; ВРОО ФСА; Воронеж
A222: № | B222: 56 | C222: команда | D222: Неловкое движение
A223: состав | C223: Труханов Павел; 4/15/1992; а-2/с-бр; ;
C224: Корочков Алексей
A226: № | B226: 57 | C226: команда | D226: По пути
A227: состав | C227: Лапотников Виталий Михайлович; 12/6/1981; а-бр/с-бр; ТК Вестра; Москва
C228: Вернер Владимир Андреевич; 3/7/1991; а-бр/с-бр; ТК Вестра; Москва
A230: № | B230: 58 | C230: команда | D230: Гахария - сонная тетеря
A231: состав | C231: Гахария Анна
C232: Вовк Сергей
A234: № | B234: 59 | C234: команда | D234: 24
A235: состав
A238: № | B238: 60 | C238: команда | D238: 25
A239: состав
A242: № | B242: 61 | C242: команда | D242: 26
A243: состав
A246: № | B246: 62 | C246: команда | D246: 27
A247: состав
A250: № | B250: 63 | C250: команда | D250: 28
A251: состав
A254: № | B254: 64 | C254: команда | D254: 29
A255: состав
A258: № | B258: 65 | C258: команда | D258: 30
A259: состав
A262: № | B262: 66 | C262: команда | D262: 31
A263: состав
A266: № | B266: 67 | C266: команда | D266: 32
A267: состав
A270: № | B270: 68 | C270: команда | D270: 33
A271: состав
A274: № | B274: 69 | C274: команда | D274: 34
A275: состав
A278: № | B278: 70 | C278: команда | D278: 35
A279: состав
A282: № | B282: 71 | C282: команда | D282: 36
A283: состав
... 58 more rows

Sheet Квалификация
W1: трасса | X1: первичная стоимость | Y1: кол-во прохождений | Z1: итоговая стоимость
A2: № | B2: ='Список команд'!B2 -> 1 | C2: команда | D2: ='Список команд'!D2:G2 -> Ураганы | W2: 1 | X2: 30 | Y2: =IF(B4=0,0,1)+IF(B11=0,0,1)+IF(B18=0,0,1)+IF(B25=0,0,1)+IF(B32=0,0,1)+IF(B39=0,0,1)+IF(B46=0,0,1)+IF(B53=0,0,1)+IF(B60=0,0,1)+IF(B67=0,0,1)+IF(B74=0,0,1)+IF(B81=0,0,1)+IF(B88=0,0,1)+IF(B95=0,0,1)+IF(B102=0,0,1)+IF(B109=0,0,1)+IF(B116=0,0,1)+IF(B123=0,0,1)+IF(B130=0,0,1)+IF(B137=0,0,1)+IF(B144=0,0,1)+IF(B151=0,0,1)+IF(B158=0,0,1)+IF(B165=0,0,1)+IF(B172=0,0,1)+IF(B179=0,0,1)+IF(B186=0,0,1)+IF(B193=0,0,1)+IF(B200=0,0,1)+IF(B207=0,0,1)+IF(B214=0,0,1)+IF(B221=0,0,1)+IF(B228=0,0,1)+IF(B235=0,0,1)+IF(B242=0,0,1)+IF(B249=0,0,1)+IF(B256=0,0,1)+IF(B263=0,0,1)+IF(B270=0,0,1)+IF(B277=0,0,1)+IF(B284=0,0,1)+IF(B291=0,0,1)+IF(B298=0,0,1)+IF(B305=0,0,1)+IF(B312=0,0,1)+IF(B319=0,0,1)+IF(B326=0,0,1)+IF(B333=0,0,1)+IF(B340=0,0,1)+IF(B347=0,0,1)+IF(B354=0,0,1)+IF(B361=0,0,1)+IF(B368=0,0,1)+IF(B375=0,0,1)+IF(B382=0,0,1)+IF(B389=0,0,1)+IF(B396=0,0,1)+IF(B403=0,0,1)+IF(B410=0,0,1)+IF(B417=0,0,1)+IF(B424=0,0,1)+IF(B431=0,0,1)+IF(B438=0,0,1)+IF(B445=0,0,1)+IF(B452=0,0,1)+IF(B459=0,0,1)+IF(B466=0,0,1)+IF(B473=0,0,1)+IF(B480=0,0,1)+IF(B487=0,0,1)+IF(B494=0,0,1)+IF(B501=0,0,1)+IF(B508=0,0,1)+IF(B515=0,0,1)+IF(B522=0,0,1)+IF(B529=0,0,1)+IF(B536=0,0,1)+IF(B543=0,0,1)+IF(B550=0,0,1)+IF(B557=0,0,1)+IF(B564=0,0,1)+IF(B571=0,0,1)+IF(B578=0,0,1)+IF(B585=0,0,1)+IF(B592=0,0,1)+IF(B599=0,0,1)+IF(B606=0,0,1)+IF(B613=0,0,1)+IF(B620=0,0,1)+IF(B627=0,0,1)+IF(B634=0,0,1)+IF(B641=0,0,1)+IF(B648=0,0,1)+IF(B655=0,0,1)+IF(B662=0,0,1)+IF(B669=0,0,1)+IF(B676=0,0,1)+IF(B683=0,0,1)+IF(B690=0,0,1)+IF(B697=0,0,1) -> 43 | Z2: =IF(Y2=0,0,X2/Y2) -> 0.6976744186
A3: трасса | B3: 1 | C3: 2 | D3: 3 | E3: 4 | F3: 5 | G3: 6 | H3: 7 | I3: 8 | J3: 9 | K3: 10 | L3: 11 | M3: 12 | N3: 13 | O3: 14 | P3: 15 | Q3: 16 | R3: 17 | S3: 18 | T3: 19 | U3: 20 | W3: 2 | X3: 30 | Y3: =IF(C4=0,0,1)+IF(C11=0,0,1)+IF(C18=0,0,1)+IF(C25=0,0,1)+IF(C32=0,0,1)+IF(C39=0,0,1)+IF(C46=0,0,1)+IF(C53=0,0,1)+IF(C60=0,0,1)+IF(C67=0,0,1)+IF(C74=0,0,1)+IF(C81=0,0,1)+IF(C88=0,0,1)+IF(C95=0,0,1)+IF(C102=0,0,1)+IF(C109=0,0,1)+IF(C116=0,0,1)+IF(C123=0,0,1)+IF(C130=0,0,1)+IF(C137=0,0,1)+IF(C144=0,0,1)+IF(C151=0,0,1)+IF(C158=0,0,1)+IF(C165=0,0,1)+IF(C172=0,0,1)+IF(C179=0,0,1)+IF(C186=0,0,1)+IF(C193=0,0,1)+IF(C200=0,0,1)+IF(C207=0,0,1)+IF(C214=0,0,1)+IF(C221=0,0,1)+IF(C228=0,0,1)+IF(C235=0,0,1)+IF(C242=0,0,1)+IF(C249=0,0,1)+IF(C256=0,0,1)+IF(C263=0,0,1)+IF(C270=0,0,1)+IF(C277=0,0,1)+IF(C284=0,0,1)+IF(C291=0,0,1)+IF(C298=0,0,1)+IF(C305=0,0,1)+IF(C312=0,0,1)+IF(C319=0,0,1)+IF(C326=0,0,1)+IF(C333=0,0,1)+IF(C340=0,0,1)+IF(C347=0,0,1)+IF(C354=0,0,1)+IF(C361=0,0,1)+IF(C368=0,0,1)+IF(C375=0,0,1)+IF(C382=0,0,1)+IF(C389=0,0,1)+IF(C396=0,0,1)+IF(C403=0,0,1)+IF(C410=0,0,1)+IF(C417=0,0,1)+IF(C424=0,0,1)+IF(C431=0,0,1)+IF(C438=0,0,1)+IF(C445=0,0,1)+IF(C452=0,0,1)+IF(C459=0,0,1)+IF(C466=0,0,1)+IF(C473=0,0,1)+IF(C480=0,0,1)+IF(C487=0,0,1)+IF(C494=0,0,1)+IF(C501=0,0,1)+IF(C508=0,0,1)+IF(C515=0,0,1)+IF(C522=0,0,1)+IF(C529=0,0,1)+IF(C536=0,0,1)+IF(C543=0,0,1)+IF(C550=0,0,1)+IF(C557=0,0,1)+IF(C564=0,0,1)+IF(C571=0,0,1)+IF(C578=0,0,1)+IF(C585=0,0,1)+IF(C592=0,0,1)+IF(C599=0,0,1)+IF(C606=0,0,1)+IF(C613=0,0,1)+IF(C620=0,0,1)+IF(C627=0,0,1)+IF(C634=0,0,1)+IF(C641=0,0,1)+IF(C648=0,0,1)+IF(C655=0,0,1)+IF(C662=0,0,1)+IF(C669=0,0,1)+IF(C676=0,0,1)+IF(C683=0,0,1)+IF(C690=0,0,1)+IF(C697=0,0,1) -> 29 | Z3: =IF(Y3=0,0,X3/Y3) -> 1.034482759
A4: время | B4: 00:01:44 | C4: 00:01:55 | D4: 00:02:31 | E4: 00:01:15 | G4: 00:04:32 | H4: 00:11:26 | I4: 00:03:00 | K4: 00:01:49 | M4: 00:11:53 | N4: 00:02:46 | P4: 00:03:20 | W4: 3 | X4: 30 | Y4: =IF(D4=0,0,1)+IF(D11=0,0,1)+IF(D18=0,0,1)+IF(D25=0,0,1)+IF(D32=0,0,1)+IF(D39=0,0,1)+IF(D46=0,0,1)+IF(D53=0,0,1)+IF(D60=0,0,1)+IF(D67=0,0,1)+IF(D74=0,0,1)+IF(D81=0,0,1)+IF(D88=0,0,1)+IF(D95=0,0,1)+IF(D102=0,0,1)+IF(D109=0,0,1)+IF(D116=0,0,1)+IF(D123=0,0,1)+IF(D130=0,0,1)+IF(D137=0,0,1)+IF(D144=0,0,1)+IF(D151=0,0,1)+IF(D158=0,0,1)+IF(D165=0,0,1)+IF(D172=0,0,1)+IF(D179=0,0,1)+IF(D186=0,0,1)+IF(D193=0,0,1)+IF(D200=0,0,1)+IF(D207=0,0,1)+IF(D214=0,0,1)+IF(D221=0,0,1)+IF(D228=0,0,1)+IF(D235=0,0,1)+IF(D242=0,0,1)+IF(D249=0,0,1)+IF(D256=0,0,1)+IF(D263=0,0,1)+IF(D270=0,0,1)+IF(D277=0,0,1)+IF(D284=0,0,1)+IF(D291=0,0,1)+IF(D298=0,0,1)+IF(D305=0,0,1)+IF(D312=0,0,1)+IF(D319=0,0,1)+IF(D326=0,0,1)+IF(D333=0,0,1)+IF(D340=0,0,1)+IF(D347=0,0,1)+IF(D354=0,0,1)+IF(D361=0,0,1)+IF(D368=0,0,1)+IF(D375=0,0,1)+IF(D382=0,0,1)+IF(D389=0,0,1)+IF(D396=0,0,1)+IF(D403=0,0,1)+IF(D410=0,0,1)+IF(D417=0,0,1)+IF(D424=0,0,1)+IF(D431=0,0,1)+IF(D438=0,0,1)+IF(D445=0,0,1)+IF(D452=0,0,1)+IF(D459=0,0,1)+IF(D466=0,0,1)+IF(D473=0,0,1)+IF(D480=0,0,1)+IF(D487=0,0,1)+IF(D494=0,0,1)+IF(D501=0,0,1)+IF(D508=0,0,1)+IF(D515=0,0,1)+IF(D522=0,0,1)+IF(D529=0,0,1)+IF(D536=0,0,1)+IF(D543=0,0,1)+IF(D550=0,0,1)+IF(D557=0,0,1)+IF(D564=0,0,1)+IF(D571=0,0,1)+IF(D578=0,0,1)+IF(D585=0,0,1)+IF(D592=0,0,1)+IF(D599=0,0,1)+IF(D606=0,0,1)+IF(D613=0,0,1)+IF(D620=0,0,1)+IF(D627=0,0,1)+IF(D634=0,0,1)+IF(D641=0,0,1)+IF(D648=0,0,1)+IF(D655=0,0,1)+IF(D662=0,0,1)+IF(D669=0,0,1)+IF(D676=0,0,1)+IF(D683=0,0,1)+IF(D690=0,0,1)+IF(D697=0,0,1) -> 39 | Z4: 0.7692307692
A5: штраф | W5: 4 | X5: 30 | Y5: =IF(E4=0,0,1)+IF(E11=0,0,1)+IF(E18=0,0,1)+IF(E25=0,0,1)+IF(E32=0,0,1)+IF(E39=0,0,1)+IF(E46=0,0,1)+IF(E53=0,0,1)+IF(E60=0,0,1)+IF(E67=0,0,1)+IF(E74=0,0,1)+IF(E81=0,0,1)+IF(E88=0,0,1)+IF(E95=0,0,1)+IF(E102=0,0,1)+IF(E109=0,0,1)+IF(E116=0,0,1)+IF(E123=0,0,1)+IF(E130=0,0,1)+IF(E137=0,0,1)+IF(E144=0,0,1)+IF(E151=0,0,1)+IF(E158=0,0,1)+IF(E165=0,0,1)+IF(E172=0,0,1)+IF(E179=0,0,1)+IF(E186=0,0,1)+IF(E193=0,0,1)+IF(E200=0,0,1)+IF(E207=0,0,1)+IF(E214=0,0,1)+IF(E221=0,0,1)+IF(E228=0,0,1)+IF(E235=0,0,1)+IF(E242=0,0,1)+IF(E249=0,0,1)+IF(E256=0,0,1)+IF(E263=0,0,1)+IF(E270=0,0,1)+IF(E277=0,0,1)+IF(E284=0,0,1)+IF(E291=0,0,1)+IF(E298=0,0,1)+IF(E305=0,0,1)+IF(E312=0,0,1)+IF(E319=0,0,1)+IF(E326=0,0,1)+IF(E333=0,0,1)+IF(E340=0,0,1)+IF(E347=0,0,1)+IF(E354=0,0,1)+IF(E361=0,0,1)+IF(E368=0,0,1)+IF(E375=0,0,1)+IF(E382=0,0,1)+IF(E389=0,0,1)+IF(E396=0,0,1)+IF(E403=0,0,1)+IF(E410=0,0,1)+IF(E417=0,0,1)+IF(E424=0,0,1)+IF(E431=0,0,1)+IF(E438=0,0,1)+IF(E445=0,0,1)+IF(E452=0,0,1)+IF(E459=0,0,1)+IF(E466=0,0,1)+IF(E473=0,0,1)+IF(E480=0,0,1)+IF(E487=0,0,1)+IF(E494=0,0,1)+IF(E501=0,0,1)+IF(E508=0,0,1)+IF(E515=0,0,1)+IF(E522=0,0,1)+IF(E529=0,0,1)+IF(E536=0,0,1)+IF(E543=0,0,1)+IF(E550=0,0,1)+IF(E557=0,0,1)+IF(E564=0,0,1)+IF(E571=0,0,1)+IF(E578=0,0,1)+IF(E585=0,0,1)+IF(E592=0,0,1)+IF(E599=0,0,1)+IF(E606=0,0,1)+IF(E613=0,0,1)+IF(E620=0,0,1)+IF(E627=0,0,1)+IF(E634=0,0,1)+IF(E641=0,0,1)+IF(E648=0,0,1)+IF(E655=0,0,1)+IF(E662=0,0,1)+IF(E669=0,0,1)+IF(E676=0,0,1)+IF(E683=0,0,1)+IF(E690=0,0,1)+IF(E697=0,0,1) -> 39 | Z5: 0.7692307692
A6: баллы | B6: =IF(B4=0,0,Z2) -> 0.6976744186 | C6: =IF(C4=0,0,Z3) -> 1.034482759 | D6: =IF(D4=0,0,Z4) -> 0.7692307692 | E6: =IF(E4=0,0,Z5) -> 0.7692307692 | F6: =IF(F4=0,0,Z6) -> 0 | G6: =IF(G4=0,0,Z7) -> 1.363636364 | H6: =IF(H4=0,0,Z8) -> 8.333333333 | I6: =IF(I4=0,0,Z9) -> 3.333333333 | J6: =IF(J4=0,0,Z10) -> 0 | K6: =IF(K4=0,0,Z11) -> 4.347826087 | L6: =IF(L4=0,0,Z12) -> 0 | M6: =IF(M4=0,0,Z13) -> 5.454545455 | N6: =IF(N4=0,0,Z14) -> 2.727272727 | O6: =IF(O4=0,0,Z15) -> 0 | P6: =IF(P4=0,0,Z16) -> 1.764705882 | Q6: =IF(Q4=0,0,Z17) -> 0 | R6: =IF(R4=0,0,Z18) -> 0 | S6: =IF(S4=0,0,Z19) -> 0 | T6: =IF(T4=0,0,Z20) -> 0 | U6: =IF(U4=0,0,Z21) -> 0 | W6: 5 | X6: 30 | Y6: =IF(F4=0,0,1)+IF(F11=0,0,1)+IF(F18=0,0,1)+IF(F25=0,0,1)+IF(F32=0,0,1)+IF(F39=0,0,1)+IF(F46=0,0,1)+IF(F53=0,0,1)+IF(F60=0,0,1)+IF(F67=0,0,1)+IF(F74=0,0,1)+IF(F81=0,0,1)+IF(F88=0,0,1)+IF(F95=0,0,1)+IF(F102=0,0,1)+IF(F109=0,0,1)+IF(F116=0,0,1)+IF(F123=0,0,1)+IF(F130=0,0,1)+IF(F137=0,0,1)+IF(F144=0,0,1)+IF(F151=0,0,1)+IF(F158=0,0,1)+IF(F165=0,0,1)+IF(F172=0,0,1)+IF(F179=0,0,1)+IF(F186=0,0,1)+IF(F193=0,0,1)+IF(F200=0,0,1)+IF(F207=0,0,1)+IF(F214=0,0,1)+IF(F221=0,0,1)+IF(F228=0,0,1)+IF(F235=0,0,1)+IF(F242=0,0,1)+IF(F249=0,0,1)+IF(F256=0,0,1)+IF(F263=0,0,1)+IF(F270=0,0,1)+IF(F277=0,0,1)+IF(F284=0,0,1)+IF(F291=0,0,1)+IF(F298=0,0,1)+IF(F305=0,0,1)+IF(F312=0,0,1)+IF(F319=0,0,1)+IF(F326=0,0,1)+IF(F333=0,0,1)+IF(F340=0,0,1)+IF(F347=0,0,1)+IF(F354=0,0,1)+IF(F361=0,0,1)+IF(F368=0,0,1)+IF(F375=0,0,1)+IF(F382=0,0,1)+IF(F389=0,0,1)+IF(F396=0,0,1)+IF(F403=0,0,1)+IF(F410=0,0,1)+IF(F417=0,0,1)+IF(F424=0,0,1)+IF(F431=0,0,1)+IF(F438=0,0,1)+IF(F445=0,0,1)+IF(F452=0,0,1)+IF(F459=0,0,1)+IF(F466=0,0,1)+IF(F473=0,0,1)+IF(F480=0,0,1)+IF(F487=0,0,1)+IF(F494=0,0,1)+IF(F501=0,0,1)+IF(F508=0,0,1)+IF(F515=0,0,1)+IF(F522=0,0,1)+IF(F529=0,0,1)+IF(F536=0,0,1)+IF(F543=0,0,1)+IF(F550=0,0,1)+IF(F557=0,0,1)+IF(F564=0,0,1)+IF(F571=0,0,1)+IF(F578=0,0,1)+IF(F585=0,0,1)+IF(F592=0,0,1)+IF(F599=0,0,1)+IF(F606=0,0,1)+IF(F613=0,0,1)+IF(F620=0,0,1)+IF(F627=0,0,1)+IF(F634=0,0,1)+IF(F641=0,0,1)+IF(F648=0,0,1)+IF(F655=0,0,1)+IF(F662=0,0,1)+IF(F669=0,0,1)+IF(F676=0,0,1)+IF(F683=0,0,1)+IF(F690=0,0,1)+IF(F697=0,0,1) -> 18 | Z6: 1.666666667
A7: итог время | B7: =SUM(B4:U5) -> 00:46:11 | I7: итог баллы | K7: =SUM(B6:U6) -> 30.5952719 | W7: 6 | X7: 30 | Y7: =IF(G4=0,0,1)+IF(G11=0,0,1)+IF(G18=0,0,1)+IF(G25=0,0,1)+IF(G32=0,0,1)+IF(G39=0,0,1)+IF(G46=0,0,1)+IF(G53=0,0,1)+IF(G60=0,0,1)+IF(G67=0,0,1)+IF(G74=0,0,1)+IF(G81=0,0,1)+IF(G88=0,0,1)+IF(G95=0,0,1)+IF(G102=0,0,1)+IF(G109=0,0,1)+IF(G116=0,0,1)+IF(G123=0,0,1)+IF(G130=0,0,1)+IF(G137=0,0,1)+IF(G144=0,0,1)+IF(G151=0,0,1)+IF(G158=0,0,1)+IF(G165=0,0,1)+IF(G172=0,0,1)+IF(G179=0,0,1)+IF(G186=0,0,1)+IF(G193=0,0,1)+IF(G200=0,0,1)+IF(G207=0,0,1)+IF(G214=0,0,1)+IF(G221=0,0,1)+IF(G228=0,0,1)+IF(G235=0,0,1)+IF(G242=0,0,1)+IF(G249=0,0,1)+IF(G256=0,0,1)+IF(G263=0,0,1)+IF(G270=0,0,1)+IF(G277=0,0,1)+IF(G284=0,0,1)+IF(G291=0,0,1)+IF(G298=0,0,1)+IF(G305=0,0,1)+IF(G312=0,0,1)+IF(G319=0,0,1)+IF(G326=0,0,1)+IF(G333=0,0,1)+IF(G340=0,0,1)+IF(G347=0,0,1)+IF(G354=0,0,1)+IF(G361=0,0,1)+IF(G368=0,0,1)+IF(G375=0,0,1)+IF(G382=0,0,1)+IF(G389=0,0,1)+IF(G396=0,0,1)+IF(G403=0,0,1)+IF(G410=0,0,1)+IF(G417=0,0,1)+IF(G424=0,0,1)+IF(G431=0,0,1)+IF(G438=0,0,1)+IF(G445=0,0,1)+IF(G452=0,0,1)+IF(G459=0,0,1)+IF(G466=0,0,1)+IF(G473=0,0,1)+IF(G480=0,0,1)+IF(G487=0,0,1)+IF(G494=0,0,1)+IF(G501=0,0,1)+IF(G508=0,0,1)+IF(G515=0,0,1)+IF(G522=0,0,1)+IF(G529=0,0,1)+IF(G536=0,0,1)+IF(G543=0,0,1)+IF(G550=0,0,1)+IF(G557=0,0,1)+IF(G564=0,0,1)+IF(G571=0,0,1)+IF(G578=0,0,1)+IF(G585=0,0,1)+IF(G592=0,0,1)+IF(G599=0,0,1)+IF(G606=0,0,1)+IF(G613=0,0,1)+IF(G620=0,0,1)+IF(G627=0,0,1)+IF(G634=0,0,1)+IF(G641=0,0,1)+IF(G648=0,0,1)+IF(G655=0,0,1)+IF(G662=0,0,1)+IF(G669=0,0,1)+IF(G676=0,0,1)+IF(G683=0,0,1)+IF(G690=0,0,1)+IF(G697=0,0,1) -> 22 | Z7: 1.363636364
W8: 7 | X8: 100 | Y8: =IF(H4=0,0,1)+IF(H11=0,0,1)+IF(H18=0,0,1)+IF(H25=0,0,1)+IF(H32=0,0,1)+IF(H39=0,0,1)+IF(H46=0,0,1)+IF(H53=0,0,1)+IF(H60=0,0,1)+IF(H67=0,0,1)+IF(H74=0,0,1)+IF(H81=0,0,1)+IF(H88=0,0,1)+IF(H95=0,0,1)+IF(H102=0,0,1)+IF(H109=0,0,1)+IF(H116=0,0,1)+IF(H123=0,0,1)+IF(H130=0,0,1)+IF(H137=0,0,1)+IF(H144=0,0,1)+IF(H151=0,0,1)+IF(H158=0,0,1)+IF(H165=0,0,1)+IF(H172=0,0,1)+IF(H179=0,0,1)+IF(H186=0,0,1)+IF(H193=0,0,1)+IF(H200=0,0,1)+IF(H207=0,0,1)+IF(H214=0,0,1)+IF(H221=0,0,1)+IF(H228=0,0,1)+IF(H235=0,0,1)+IF(H242=0,0,1)+IF(H249=0,0,1)+IF(H256=0,0,1)+IF(H263=0,0,1)+IF(H270=0,0,1)+IF(H277=0,0,1)+IF(H284=0,0,1)+IF(H291=0,0,1)+IF(H298=0,0,1)+IF(H305=0,0,1)+IF(H312=0,0,1)+IF(H319=0,0,1)+IF(H326=0,0,1)+IF(H333=0,0,1)+IF(H340=0,0,1)+IF(H347=0,0,1)+IF(H354=0,0,1)+IF(H361=0,0,1)+IF(H368=0,0,1)+IF(H375=0,0,1)+IF(H382=0,0,1)+IF(H389=0,0,1)+IF(H396=0,0,1)+IF(H403=0,0,1)+IF(H410=0,0,1)+IF(H417=0,0,1)+IF(H424=0,0,1)+IF(H431=0,0,1)+IF(H438=0,0,1)+IF(H445=0,0,1)+IF(H452=0,0,1)+IF(H459=0,0,1)+IF(H466=0,0,1)+IF(H473=0,0,1)+IF(H480=0,0,1)+IF(H487=0,0,1)+IF(H494=0,0,1)+IF(H501=0,0,1)+IF(H508=0,0,1)+IF(H515=0,0,1)+IF(H522=0,0,1)+IF(H529=0,0,1)+IF(H536=0,0,1)+IF(H543=0,0,1)+IF(H550=0,0,1)+IF(H557=0,0,1)+IF(H564=0,0,1)+IF(H571=0,0,1)+IF(H578=0,0,1)+IF(H585=0,0,1)+IF(H592=0,0,1)+IF(H599=0,0,1)+IF(H606=0,0,1)+IF(H613=0,0,1)+IF(H620=0,0,1)+IF(H627=0,0,1)+IF(H634=0,0,1)+IF(H641=0,0,1)+IF(H648=0,0,1)+IF(H655=0,0,1)+IF(H662=0,0,1)+IF(H669=0,0,1)+IF(H676=0,0,1)+IF(H683=0,0,1)+IF(H690=0,0,1)+IF(H697=0,0,1) -> 12 | Z8: 8.333333333
A9: № | B9: ='Список команд'!B6 -> 2 | C9: команда | D9: ='Список команд'!D6:G6 -> Энергия | W9: 8 | X9: 100 | Y9: =IF(I4=0,0,1)+IF(I11=0,0,1)+IF(I18=0,0,1)+IF(I25=0,0,1)+IF(I32=0,0,1)+IF(I39=0,0,1)+IF(I46=0,0,1)+IF(I53=0,0,1)+IF(I60=0,0,1)+IF(I67=0,0,1)+IF(I74=0,0,1)+IF(I81=0,0,1)+IF(I88=0,0,1)+IF(I95=0,0,1)+IF(I102=0,0,1)+IF(I109=0,0,1)+IF(I116=0,0,1)+IF(I123=0,0,1)+IF(I130=0,0,1)+IF(I137=0,0,1)+IF(I144=0,0,1)+IF(I151=0,0,1)+IF(I158=0,0,1)+IF(I165=0,0,1)+IF(I172=0,0,1)+IF(I179=0,0,1)+IF(I186=0,0,1)+IF(I193=0,0,1)+IF(I200=0,0,1)+IF(I207=0,0,1)+IF(I214=0,0,1)+IF(I221=0,0,1)+IF(I228=0,0,1)+IF(I235=0,0,1)+IF(I242=0,0,1)+IF(I249=0,0,1)+IF(I256=0,0,1)+IF(I263=0,0,1)+IF(I270=0,0,1)+IF(I277=0,0,1)+IF(I284=0,0,1)+IF(I291=0,0,1)+IF(I298=0,0,1)+IF(I305=0,0,1)+IF(I312=0,0,1)+IF(I319=0,0,1)+IF(I326=0,0,1)+IF(I333=0,0,1)+IF(I340=0,0,1)+IF(I347=0,0,1)+IF(I354=0,0,1)+IF(I361=0,0,1)+IF(I368=0,0,1)+IF(I375=0,0,1)+IF(I382=0,0,1)+IF(I389=0,0,1)+IF(I396=0,0,1)+IF(I403=0,0,1)+IF(I410=0,0,1)+IF(I417=0,0,1)+IF(I424=0,0,1)+IF(I431=0,0,1)+IF(I438=0,0,1)+IF(I445=0,0,1)+IF(I452=0,0,1)+IF(I459=0,0,1)+IF(I466=0,0,1)+IF(I473=0,0,1)+IF(I480=0,0,1)+IF(I487=0,0,1)+IF(I494=0,0,1)+IF(I501=0,0,1)+IF(I508=0,0,1)+IF(I515=0,0,1)+IF(I522=0,0,1)+IF(I529=0,0,1)+IF(I536=0,0,1)+IF(I543=0,0,1)+IF(I550=0,0,1)+IF(I557=0,0,1)+IF(I564=0,0,1)+IF(I571=0,0,1)+IF(I578=0,0,1)+IF(I585=0,0,1)+IF(I592=0,0,1)+IF(I599=0,0,1)+IF(I606=0,0,1)+IF(I613=0,0,1)+IF(I620=0,0,1)+IF(I627=0,0,1)+IF(I634=0,0,1)+IF(I641=0,0,1)+IF(I648=0,0,1)+IF(I655=0,0,1)+IF(I662=0,0,1)+IF(I669=0,0,1)+IF(I676=0,0,1)+IF(I683=0,0,1)+IF(I690=0,0,1)+IF(I697=0,0,1) -> 30 | Z9: 3.333333333
A10: трасса | B10: 1 | C10: 2 | D10: 3 | E10: 4 | F10: 5 | G10: 6 | H10: 7 | I10: 8 | J10: 9 | K10: 10 | L10: 11 | M10: 12 | N10: 13 | O10: 14 | P10: 15 | Q10: 16 | R10: 17 | S10: 18 | T10: 19 | U10: 20 | W10: 9 | X10: 100 | Y10: =IF(J4=0,0,1)+IF(J11=0,0,1)+IF(J18=0,0,1)+IF(J25=0,0,1)+IF(J32=0,0,1)+IF(J39=0,0,1)+IF(J46=0,0,1)+IF(J53=0,0,1)+IF(J60=0,0,1)+IF(J67=0,0,1)+IF(J74=0,0,1)+IF(J81=0,0,1)+IF(J88=0,0,1)+IF(J95=0,0,1)+IF(J102=0,0,1)+IF(J109=0,0,1)+IF(J116=0,0,1)+IF(J123=0,0,1)+IF(J130=0,0,1)+IF(J137=0,0,1)+IF(J144=0,0,1)+IF(J151=0,0,1)+IF(J158=0,0,1)+IF(J165=0,0,1)+IF(J172=0,0,1)+IF(J179=0,0,1)+IF(J186=0,0,1)+IF(J193=0,0,1)+IF(J200=0,0,1)+IF(J207=0,0,1)+IF(J214=0,0,1)+IF(J221=0,0,1)+IF(J228=0,0,1)+IF(J235=0,0,1)+IF(J242=0,0,1)+IF(J249=0,0,1)+IF(J256=0,0,1)+IF(J263=0,0,1)+IF(J270=0,0,1)+IF(J277=0,0,1)+IF(J284=0,0,1)+IF(J291=0,0,1)+IF(J298=0,0,1)+IF(J305=0,0,1)+IF(J312=0,0,1)+IF(J319=0,0,1)+IF(J326=0,0,1)+IF(J333=0,0,1)+IF(J340=0,0,1)+IF(J347=0,0,1)+IF(J354=0,0,1)+IF(J361=0,0,1)+IF(J368=0,0,1)+IF(J375=0,0,1)+IF(J382=0,0,1)+IF(J389=0,0,1)+IF(J396=0,0,1)+IF(J403=0,0,1)+IF(J410=0,0,1)+IF(J417=0,0,1)+IF(J424=0,0,1)+IF(J431=0,0,1)+IF(J438=0,0,1)+IF(J445=0,0,1)+IF(J452=0,0,1)+IF(J459=0,0,1)+IF(J466=0,0,1)+IF(J473=0,0,1)+IF(J480=0,0,1)+IF(J487=0,0,1)+IF(J494=0,0,1)+IF(J501=0,0,1)+IF(J508=0,0,1)+IF(J515=0,0,1)+IF(J522=0,0,1)+IF(J529=0,0,1)+IF(J536=0,0,1)+IF(J543=0,0,1)+IF(J550=0,0,1)+IF(J557=0,0,1)+IF(J564=0,0,1)+IF(J571=0,0,1)+IF(J578=0,0,1)+IF(J585=0,0,1)+IF(J592=0,0,1)+IF(J599=0,0,1)+IF(J606=0,0,1)+IF(J613=0,0,1)+IF(J620=0,0,1)+IF(J627=0,0,1)+IF(J634=0,0,1)+IF(J641=0,0,1)+IF(J648=0,0,1)+IF(J655=0,0,1)+IF(J662=0,0,1)+IF(J669=0,0,1)+IF(J676=0,0,1)+IF(J683=0,0,1)+IF(J690=0,0,1)+IF(J697=0,0,1) -> 5 | Z10: 20
A11: время | B11: 00:02:40 | D11: 00:04:57 | E11: 00:02:56 | F11: 00:08:00 | G11: 00:04:19 | M11: 00:15:45 | P11: 00:04:03 | W11: 10 | X11: 100 | Y11: =IF(K4=0,0,1)+IF(K11=0,0,1)+IF(K18=0,0,1)+IF(K25=0,0,1)+IF(K32=0,0,1)+IF(K39=0,0,1)+IF(K46=0,0,1)+IF(K53=0,0,1)+IF(K60=0,0,1)+IF(K67=0,0,1)+IF(K74=0,0,1)+IF(K81=0,0,1)+IF(K88=0,0,1)+IF(K95=0,0,1)+IF(K102=0,0,1)+IF(K109=0,0,1)+IF(K116=0,0,1)+IF(K123=0,0,1)+IF(K130=0,0,1)+IF(K137=0,0,1)+IF(K144=0,0,1)+IF(K151=0,0,1)+IF(K158=0,0,1)+IF(K165=0,0,1)+IF(K172=0,0,1)+IF(K179=0,0,1)+IF(K186=0,0,1)+IF(K193=0,0,1)+IF(K200=0,0,1)+IF(K207=0,0,1)+IF(K214=0,0,1)+IF(K221=0,0,1)+IF(K228=0,0,1)+IF(K235=0,0,1)+IF(K242=0,0,1)+IF(K249=0,0,1)+IF(K256=0,0,1)+IF(K263=0,0,1)+IF(K270=0,0,1)+IF(K277=0,0,1)+IF(K284=0,0,1)+IF(K291=0,0,1)+IF(K298=0,0,1)+IF(K305=0,0,1)+IF(K312=0,0,1)+IF(K319=0,0,1)+IF(K326=0,0,1)+IF(K333=0,0,1)+IF(K340=0,0,1)+IF(K347=0,0,1)+IF(K354=0,0,1)+IF(K361=0,0,1)+IF(K368=0,0,1)+IF(K375=0,0,1)+IF(K382=0,0,1)+IF(K389=0,0,1)+IF(K396=0,0,1)+IF(K403=0,0,1)+IF(K410=0,0,1)+IF(K417=0,0,1)+IF(K424=0,0,1)+IF(K431=0,0,1)+IF(K438=0,0,1)+IF(K445=0,0,1)+IF(K452=0,0,1)+IF(K459=0,0,1)+IF(K466=0,0,1)+IF(K473=0,0,1)+IF(K480=0,0,1)+IF(K487=0,0,1)+IF(K494=0,0,1)+IF(K501=0,0,1)+IF(K508=0,0,1)+IF(K515=0,0,1)+IF(K522=0,0,1)+IF(K529=0,0,1)+IF(K536=0,0,1)+IF(K543=0,0,1)+IF(K550=0,0,1)+IF(K557=0,0,1)+IF(K564=0,0,1)+IF(K571=0,0,1)+IF(K578=0,0,1)+IF(K585=0,0,1)+IF(K592=0,0,1)+IF(K599=0,0,1)+IF(K606=0,0,1)+IF(K613=0,0,1)+IF(K620=0,0,1)+IF(K627=0,0,1)+IF(K634=0,0,1)+IF(K641=0,0,1)+IF(K648=0,0,1)+IF(K655=0,0,1)+IF(K662=0,0,1)+IF(K669=0,0,1)+IF(K676=0,0,1)+IF(K683=0,0,1)+IF(K690=0,0,1)+IF(K697=0,0,1) -> 23 | Z11: 4.347826087
A12: штраф | W12: 11 | X12: 100 | Y12: =IF(L4=0,0,1)+IF(L11=0,0,1)+IF(L18=0,0,1)+IF(L25=0,0,1)+IF(L32=0,0,1)+IF(L39=0,0,1)+IF(L46=0,0,1)+IF(L53=0,0,1)+IF(L60=0,0,1)+IF(L67=0,0,1)+IF(L74=0,0,1)+IF(L81=0,0,1)+IF(L88=0,0,1)+IF(L95=0,0,1)+IF(L102=0,0,1)+IF(L109=0,0,1)+IF(L116=0,0,1)+IF(L123=0,0,1)+IF(L130=0,0,1)+IF(L137=0,0,1)+IF(L144=0,0,1)+IF(L151=0,0,1)+IF(L158=0,0,1)+IF(L165=0,0,1)+IF(L172=0,0,1)+IF(L179=0,0,1)+IF(L186=0,0,1)+IF(L193=0,0,1)+IF(L200=0,0,1)+IF(L207=0,0,1)+IF(L214=0,0,1)+IF(L221=0,0,1)+IF(L228=0,0,1)+IF(L235=0,0,1)+IF(L242=0,0,1)+IF(L249=0,0,1)+IF(L256=0,0,1)+IF(L263=0,0,1)+IF(L270=0,0,1)+IF(L277=0,0,1)+IF(L284=0,0,1)+IF(L291=0,0,1)+IF(L298=0,0,1)+IF(L305=0,0,1)+IF(L312=0,0,1)+IF(L319=0,0,1)+IF(L326=0,0,1)+IF(L333=0,0,1)+IF(L340=0,0,1)+IF(L347=0,0,1)+IF(L354=0,0,1)+IF(L361=0,0,1)+IF(L368=0,0,1)+IF(L375=0,0,1)+IF(L382=0,0,1)+IF(L389=0,0,1)+IF(L396=0,0,1)+IF(L403=0,0,1)+IF(L410=0,0,1)+IF(L417=0,0,1)+IF(L424=0,0,1)+IF(L431=0,0,1)+IF(L438=0,0,1)+IF(L445=0,0,1)+IF(L452=0,0,1)+IF(L459=0,0,1)+IF(L466=0,0,1)+IF(L473=0,0,1)+IF(L480=0,0,1)+IF(L487=0,0,1)+IF(L494=0,0,1)+IF(L501=0,0,1)+IF(L508=0,0,1)+IF(L515=0,0,1)+IF(L522=0,0,1)+IF(L529=0,0,1)+IF(L536=0,0,1)+IF(L543=0,0,1)+IF(L550=0,0,1)+IF(L557=0,0,1)+IF(L564=0,0,1)+IF(L571=0,0,1)+IF(L578=0,0,1)+IF(L585=0,0,1)+IF(L592=0,0,1)+IF(L599=0,0,1)+IF(L606=0,0,1)+IF(L613=0,0,1)+IF(L620=0,0,1)+IF(L627=0,0,1)+IF(L634=0,0,1)+IF(L641=0,0,1)+IF(L648=0,0,1)+IF(L655=0,0,1)+IF(L662=0,0,1)+IF(L669=0,0,1)+IF(L676=0,0,1)+IF(L683=0,0,1)+IF(L690=0,0,1)+IF(L697=0,0,1) -> 7 | Z12: 14.28571429
A13: баллы | B13: =IF(B11=0,0,Z2) -> 0.6976744186 | C13: =IF(C11=0,0,Z3) -> 0 | D13: =IF(D11=0,0,Z4) -> 0.7692307692 | E13: =IF(E11=0,0,Z5) -> 0.7692307692 | F13: =IF(F11=0,0,Z6) -> 1.666666667 | G13: =IF(G11=0,0,Z7) -> 1.363636364 | H13: =IF(H11=0,0,Z8) -> 0 | I13: =IF(I11=0,0,Z9) -> 0 | J13: =IF(J11=0,0,Z10) -> 0 | K13: =IF(K11=0,0,Z11) -> 0 | L13: =IF(L11=0,0,Z12) -> 0 | M13: =IF(M11=0,0,Z13) -> 5.454545455 | N13: =IF(N11=0,0,Z14) -> 0 | O13: =IF(O11=0,0,Z15) -> 0 | P13: =IF(P11=0,0,Z16) -> 1.764705882 | Q13: =IF(Q11=0,0,Z17) -> 0 | R13: =IF(R11=0,0,Z18) -> 0 | S13: =IF(S11=0,0,Z19) -> 0 | T13: =IF(T11=0,0,Z20) -> 0 | U13: =IF(U11=0,0,Z21) -> 0 | W13: 12 | X13: 60 | Y13: =IF(M4=0,0,1)+IF(M11=0,0,1)+IF(M18=0,0,1)+IF(M25=0,0,1)+IF(M32=0,0,1)+IF(M39=0,0,1)+IF(M46=0,0,1)+IF(M53=0,0,1)+IF(M60=0,0,1)+IF(M67=0,0,1)+IF(M74=0,0,1)+IF(M81=0,0,1)+IF(M88=0,0,1)+IF(M95=0,0,1)+IF(M102=0,0,1)+IF(M109=0,0,1)+IF(M116=0,0,1)+IF(M123=0,0,1)+IF(M130=0,0,1)+IF(M137=0,0,1)+IF(M144=0,0,1)+IF(M151=0,0,1)+IF(M158=0,0,1)+IF(M165=0,0,1)+IF(M172=0,0,1)+IF(M179=0,0,1)+IF(M186=0,0,1)+IF(M193=0,0,1)+IF(M200=0,0,1)+IF(M207=0,0,1)+IF(M214=0,0,1)+IF(M221=0,0,1)+IF(M228=0,0,1)+IF(M235=0,0,1)+IF(M242=0,0,1)+IF(M249=0,0,1)+IF(M256=0,0,1)+IF(M263=0,0,1)+IF(M270=0,0,1)+IF(M277=0,0,1)+IF(M284=0,0,1)+IF(M291=0,0,1)+IF(M298=0,0,1)+IF(M305=0,0,1)+IF(M312=0,0,1)+IF(M319=0,0,1)+IF(M326=0,0,1)+IF(M333=0,0,1)+IF(M340=0,0,1)+IF(M347=0,0,1)+IF(M354=0,0,1)+IF(M361=0,0,1)+IF(M368=0,0,1)+IF(M375=0,0,1)+IF(M382=0,0,1)+IF(M389=0,0,1)+IF(M396=0,0,1)+IF(M403=0,0,1)+IF(M410=0,0,1)+IF(M417=0,0,1)+IF(M424=0,0,1)+IF(M431=0,0,1)+IF(M438=0,0,1)+IF(M445=0,0,1)+IF(M452=0,0,1)+IF(M459=0,0,1)+IF(M466=0,0,1)+IF(M473=0,0,1)+IF(M480=0,0,1)+IF(M487=0,0,1)+IF(M494=0,0,1)+IF(M501=0,0,1)+IF(M508=0,0,1)+IF(M515=0,0,1)+IF(M522=0,0,1)+IF(M529=0,0,1)+IF(M536=0,0,1)+IF(M543=0,0,1)+IF(M550=0,0,1)+IF(M557=0,0,1)+IF(M564=0,0,1)+IF(M571=0,0,1)+IF(M578=0,0,1)+IF(M585=0,0,1)+IF(M592=0,0,1)+IF(M599=0,0,1)+IF(M606=0,0,1)+IF(M613=0,0,1)+IF(M620=0,0,1)+IF(M627=0,0,1)+IF(M634=0,0,1)+IF(M641=0,0,1)+IF(M648=0,0,1)+IF(M655=0,0,1)+IF(M662=0,0,1)+IF(M669=0,0,1)+IF(M676=0,0,1)+IF(M683=0,0,1)+IF(M690=0,0,1)+IF(M697=0,0,1) -> 11 | Z13: 5.454545455
A14: итог время | B14: =SUM(B11:U12) -> 00:42:40 | I14: итог баллы | K14: =SUM(B13:U13) -> 12.48569032 | W14: 13 | X14: 60 | Y14: =IF(N4=0,0,1)+IF(N11=0,0,1)+IF(N18=0,0,1)+IF(N25=0,0,1)+IF(N32=0,0,1)+IF(N39=0,0,1)+IF(N46=0,0,1)+IF(N53=0,0,1)+IF(N60=0,0,1)+IF(N67=0,0,1)+IF(N74=0,0,1)+IF(N81=0,0,1)+IF(N88=0,0,1)+IF(N95=0,0,1)+IF(N102=0,0,1)+IF(N109=0,0,1)+IF(N116=0,0,1)+IF(N123=0,0,1)+IF(N130=0,0,1)+IF(N137=0,0,1)+IF(N144=0,0,1)+IF(N151=0,0,1)+IF(N158=0,0,1)+IF(N165=0,0,1)+IF(N172=0,0,1)+IF(N179=0,0,1)+IF(N186=0,0,1)+IF(N193=0,0,1)+IF(N200=0,0,1)+IF(N207=0,0,1)+IF(N214=0,0,1)+IF(N221=0,0,1)+IF(N228=0,0,1)+IF(N235=0,0,1)+IF(N242=0,0,1)+IF(N249=0,0,1)+IF(N256=0,0,1)+IF(N263=0,0,1)+IF(N270=0,0,1)+IF(N277=0,0,1)+IF(N284=0,0,1)+IF(N291=0,0,1)+IF(N298=0,0,1)+IF(N305=0,0,1)+IF(N312=0,0,1)+IF(N319=0,0,1)+IF(N326=0,0,1)+IF(N333=0,0,1)+IF(N340=0,0,1)+IF(N347=0,0,1)+IF(N354=0,0,1)+IF(N361=0,0,1)+IF(N368=0,0,1)+IF(N375=0,0,1)+IF(N382=0,0,1)+IF(N389=0,0,1)+IF(N396=0,0,1)+IF(N403=0,0,1)+IF(N410=0,0,1)+IF(N417=0,0,1)+IF(N424=0,0,1)+IF(N431=0,0,1)+IF(N438=0,0,1)+IF(N445=0,0,1)+IF(N452=0,0,1)+IF(N459=0,0,1)+IF(N466=0,0,1)+IF(N473=0,0,1)+IF(N480=0,0,1)+IF(N487=0,0,1)+IF(N494=0,0,1)+IF(N501=0,0,1)+IF(N508=0,0,1)+IF(N515=0,0,1)+IF(N522=0,0,1)+IF(N529=0,0,1)+IF(N536=0,0,1)+IF(N543=0,0,1)+IF(N550=0,0,1)+IF(N557=0,0,1)+IF(N564=0,0,1)+IF(N571=0,0,1)+IF(N578=0,0,1)+IF(N585=0,0,1)+IF(N592=0,0,1)+IF(N599=0,0,1)+IF(N606=0,0,1)+IF(N613=0,0,1)+IF(N620=0,0,1)+IF(N627=0,0,1)+IF(N634=0,0,1)+IF(N641=0,0,1)+IF(N648=0,0,1)+IF(N655=0,0,1)+IF(N662=0,0,1)+IF(N669=0,0,1)+IF(N676=0,0,1)+IF(N683=0,0,1)+IF(N690=0,0,1)+IF(N697=0,0,1) -> 22 | Z14: 2.727272727
W15: 14 | X15: 60 | Y15: =IF(O4=0,0,1)+IF(O11=0,0,1)+IF(O18=0,0,1)+IF(O25=0,0,1)+IF(O32=0,0,1)+IF(O39=0,0,1)+IF(O46=0,0,1)+IF(O53=0,0,1)+IF(O60=0,0,1)+IF(O67=0,0,1)+IF(O74=0,0,1)+IF(O81=0,0,1)+IF(O88=0,0,1)+IF(O95=0,0,1)+IF(O102=0,0,1)+IF(O109=0,0,1)+IF(O116=0,0,1)+IF(O123=0,0,1)+IF(O130=0,0,1)+IF(O137=0,0,1)+IF(O144=0,0,1)+IF(O151=0,0,1)+IF(O158=0,0,1)+IF(O165=0,0,1)+IF(O172=0,0,1)+IF(O179=0,0,1)+IF(O186=0,0,1)+IF(O193=0,0,1)+IF(O200=0,0,1)+IF(O207=0,0,1)+IF(O214=0,0,1)+IF(O221=0,0,1)+IF(O228=0,0,1)+IF(O235=0,0,1)+IF(O242=0,0,1)+IF(O249=0,0,1)+IF(O256=0,0,1)+IF(O263=0,0,1)+IF(O270=0,0,1)+IF(O277=0,0,1)+IF(O284=0,0,1)+IF(O291=0,0,1)+IF(O298=0,0,1)+IF(O305=0,0,1)+IF(O312=0,0,1)+IF(O319=0,0,1)+IF(O326=0,0,1)+IF(O333=0,0,1)+IF(O340=0,0,1)+IF(O347=0,0,1)+IF(O354=0,0,1)+IF(O361=0,0,1)+IF(O368=0,0,1)+IF(O375=0,0,1)+IF(O382=0,0,1)+IF(O389=0,0,1)+IF(O396=0,0,1)+IF(O403=0,0,1)+IF(O410=0,0,1)+IF(O417=0,0,1)+IF(O424=0,0,1)+IF(O431=0,0,1)+IF(O438=0,0,1)+IF(O445=0,0,1)+IF(O452=0,0,1)+IF(O459=0,0,1)+IF(O466=0,0,1)+IF(O473=0,0,1)+IF(O480=0,0,1)+IF(O487=0,0,1)+IF(O494=0,0,1)+IF(O501=0,0,1)+IF(O508=0,0,1)+IF(O515=0,0,1)+IF(O522=0,0,1)+IF(O529=0,0,1)+IF(O536=0,0,1)+IF(O543=0,0,1)+IF(O550=0,0,1)+IF(O557=0,0,1)+IF(O564=0,0,1)+IF(O571=0,0,1)+IF(O578=0,0,1)+IF(O585=0,0,1)+IF(O592=0,0,1)+IF(O599=0,0,1)+IF(O606=0,0,1)+IF(O613=0,0,1)+IF(O620=0,0,1)+IF(O627=0,0,1)+IF(O634=0,0,1)+IF(O641=0,0,1)+IF(O648=0,0,1)+IF(O655=0,0,1)+IF(O662=0,0,1)+IF(O669=0,0,1)+IF(O676=0,0,1)+IF(O683=0,0,1)+IF(O690=0,0,1)+IF(O697=0,0,1) -> 5 | Z15: 12
A16: № | B16: ='Список команд'!B10 -> 3 | C16: команда | D16: ='Список команд'!D10:G10 -> цр псо | W16: 15 | X16: 60 | Y16: =IF(P4=0,0,1)+IF(P11=0,0,1)+IF(P18=0,0,1)+IF(P25=0,0,1)+IF(P32=0,0,1)+IF(P39=0,0,1)+IF(P46=0,0,1)+IF(P53=0,0,1)+IF(P60=0,0,1)+IF(P67=0,0,1)+IF(P74=0,0,1)+IF(P81=0,0,1)+IF(P88=0,0,1)+IF(P95=0,0,1)+IF(P102=0,0,1)+IF(P109=0,0,1)+IF(P116=0,0,1)+IF(P123=0,0,1)+IF(P130=0,0,1)+IF(P137=0,0,1)+IF(P144=0,0,1)+IF(P151=0,0,1)+IF(P158=0,0,1)+IF(P165=0,0,1)+IF(P172=0,0,1)+IF(P179=0,0,1)+IF(P186=0,0,1)+IF(P193=0,0,1)+IF(P200=0,0,1)+IF(P207=0,0,1)+IF(P214=0,0,1)+IF(P221=0,0,1)+IF(P228=0,0,1)+IF(P235=0,0,1)+IF(P242=0,0,1)+IF(P249=0,0,1)+IF(P256=0,0,1)+IF(P263=0,0,1)+IF(P270=0,0,1)+IF(P277=0,0,1)+IF(P284=0,0,1)+IF(P291=0,0,1)+IF(P298=0,0,1)+IF(P305=0,0,1)+IF(P312=0,0,1)+IF(P319=0,0,1)+IF(P326=0,0,1)+IF(P333=0,0,1)+IF(P340=0,0,1)+IF(P347=0,0,1)+IF(P354=0,0,1)+IF(P361=0,0,1)+IF(P368=0,0,1)+IF(P375=0,0,1)+IF(P382=0,0,1)+IF(P389=0,0,1)+IF(P396=0,0,1)+IF(P403=0,0,1)+IF(P410=0,0,1)+IF(P417=0,0,1)+IF(P424=0,0,1)+IF(P431=0,0,1)+IF(P438=0,0,1)+IF(P445=0,0,1)+IF(P452=0,0,1)+IF(P459=0,0,1)+IF(P466=0,0,1)+IF(P473=0,0,1)+IF(P480=0,0,1)+IF(P487=0,0,1)+IF(P494=0,0,1)+IF(P501=0,0,1)+IF(P508=0,0,1)+IF(P515=0,0,1)+IF(P522=0,0,1)+IF(P529=0,0,1)+IF(P536=0,0,1)+IF(P543=0,0,1)+IF(P550=0,0,1)+IF(P557=0,0,1)+IF(P564=0,0,1)+IF(P571=0,0,1)+IF(P578=0,0,1)+IF(P585=0,0,1)+IF(P592=0,0,1)+IF(P599=0,0,1)+IF(P606=0,0,1)+IF(P613=0,0,1)+IF(P620=0,0,1)+IF(P627=0,0,1)+IF(P634=0,0,1)+IF(P641=0,0,1)+IF(P648=0,0,1)+IF(P655=0,0,1)+IF(P662=0,0,1)+IF(P669=0,0,1)+IF(P676=0,0,1)+IF(P683=0,0,1)+IF(P690=0,0,1)+IF(P697=0,0,1) -> 34 | Z16: 1.764705882
A17: трасса | B17: 1 | C17: 2 | D17: 3 | E17: 4 | F17: 5 | G17: 6 | H17: 7 | I17: 8 | J17: 9 | K17: 10 | L17: 11 | M17: 12 | N17: 13 | O17: 14 | P17: 15 | Q17: 16 | R17: 17 | S17: 18 | T17: 19 | U17: 20 | W17: 16 | X17: 100 | Y17: =IF(Q4=0,0,1)+IF(Q11=0,0,1)+IF(Q18=0,0,1)+IF(Q25=0,0,1)+IF(Q32=0,0,1)+IF(Q39=0,0,1)+IF(Q46=0,0,1)+IF(Q53=0,0,1)+IF(Q60=0,0,1)+IF(Q67=0,0,1)+IF(Q74=0,0,1)+IF(Q81=0,0,1)+IF(Q88=0,0,1)+IF(Q95=0,0,1)+IF(Q102=0,0,1)+IF(Q109=0,0,1)+IF(Q116=0,0,1)+IF(Q123=0,0,1)+IF(Q130=0,0,1)+IF(Q137=0,0,1)+IF(Q144=0,0,1)+IF(Q151=0,0,1)+IF(Q158=0,0,1)+IF(Q165=0,0,1)+IF(Q172=0,0,1)+IF(Q179=0,0,1)+IF(Q186=0,0,1)+IF(Q193=0,0,1)+IF(Q200=0,0,1)+IF(Q207=0,0,1)+IF(Q214=0,0,1)+IF(Q221=0,0,1)+IF(Q228=0,0,1)+IF(Q235=0,0,1)+IF(Q242=0,0,1)+IF(Q249=0,0,1)+IF(Q256=0,0,1)+IF(Q263=0,0,1)+IF(Q270=0,0,1)+IF(Q277=0,0,1)+IF(Q284=0,0,1)+IF(Q291=0,0,1)+IF(Q298=0,0,1)+IF(Q305=0,0,1)+IF(Q312=0,0,1)+IF(Q319=0,0,1)+IF(Q326=0,0,1)+IF(Q333=0,0,1)+IF(Q340=0,0,1)+IF(Q347=0,0,1)+IF(Q354=0,0,1)+IF(Q361=0,0,1)+IF(Q368=0,0,1)+IF(Q375=0,0,1)+IF(Q382=0,0,1)+IF(Q389=0,0,1)+IF(Q396=0,0,1)+IF(Q403=0,0,1)+IF(Q410=0,0,1)+IF(Q417=0,0,1)+IF(Q424=0,0,1)+IF(Q431=0,0,1)+IF(Q438=0,0,1)+IF(Q445=0,0,1)+IF(Q452=0,0,1)+IF(Q459=0,0,1)+IF(Q466=0,0,1)+IF(Q473=0,0,1)+IF(Q480=0,0,1)+IF(Q487=0,0,1)+IF(Q494=0,0,1)+IF(Q501=0,0,1)+IF(Q508=0,0,1)+IF(Q515=0,0,1)+IF(Q522=0,0,1)+IF(Q529=0,0,1)+IF(Q536=0,0,1)+IF(Q543=0,0,1)+IF(Q550=0,0,1)+IF(Q557=0,0,1)+IF(Q564=0,0,1)+IF(Q571=0,0,1)+IF(Q578=0,0,1)+IF(Q585=0,0,1)+IF(Q592=0,0,1)+IF(Q599=0,0,1)+IF(Q606=0,0,1)+IF(Q613=0,0,1)+IF(Q620=0,0,1)+IF(Q627=0,0,1)+IF(Q634=0,0,1)+IF(Q641=0,0,1)+IF(Q648=0,0,1)+IF(Q655=0,0,1)+IF(Q662=0,0,1)+IF(Q669=0,0,1)+IF(Q676=0,0,1)+IF(Q683=0,0,1)+IF(Q690=0,0,1)+IF(Q697=0,0,1) -> 0 | Z17: 0
A18: время | W18: 17 | X18: 100 | Y18: =IF(R4=0,0,1)+IF(R11=0,0,1)+IF(R18=0,0,1)+IF(R25=0,0,1)+IF(R32=0,0,1)+IF(R39=0,0,1)+IF(R46=0,0,1)+IF(R53=0,0,1)+IF(R60=0,0,1)+IF(R67=0,0,1)+IF(R74=0,0,1)+IF(R81=0,0,1)+IF(R88=0,0,1)+IF(R95=0,0,1)+IF(R102=0,0,1)+IF(R109=0,0,1)+IF(R116=0,0,1)+IF(R123=0,0,1)+IF(R130=0,0,1)+IF(R137=0,0,1)+IF(R144=0,0,1)+IF(R151=0,0,1)+IF(R158=0,0,1)+IF(R165=0,0,1)+IF(R172=0,0,1)+IF(R179=0,0,1)+IF(R186=0,0,1)+IF(R193=0,0,1)+IF(R200=0,0,1)+IF(R207=0,0,1)+IF(R214=0,0,1)+IF(R221=0,0,1)+IF(R228=0,0,1)+IF(R235=0,0,1)+IF(R242=0,0,1)+IF(R249=0,0,1)+IF(R256=0,0,1)+IF(R263=0,0,1)+IF(R270=0,0,1)+IF(R277=0,0,1)+IF(R284=0,0,1)+IF(R291=0,0,1)+IF(R298=0,0,1)+IF(R305=0,0,1)+IF(R312=0,0,1)+IF(R319=0,0,1)+IF(R326=0,0,1)+IF(R333=0,0,1)+IF(R340=0,0,1)+IF(R347=0,0,1)+IF(R354=0,0,1)+IF(R361=0,0,1)+IF(R368=0,0,1)+IF(R375=0,0,1)+IF(R382=0,0,1)+IF(R389=0,0,1)+IF(R396=0,0,1)+IF(R403=0,0,1)+IF(R410=0,0,1)+IF(R417=0,0,1)+IF(R424=0,0,1)+IF(R431=0,0,1)+IF(R438=0,0,1)+IF(R445=0,0,1)+IF(R452=0,0,1)+IF(R459=0,0,1)+IF(R466=0,0,1)+IF(R473=0,0,1)+IF(R480=0,0,1)+IF(R487=0,0,1)+IF(R494=0,0,1)+IF(R501=0,0,1)+IF(R508=0,0,1)+IF(R515=0,0,1)+IF(R522=0,0,1)+IF(R529=0,0,1)+IF(R536=0,0,1)+IF(R543=0,0,1)+IF(R550=0,0,1)+IF(R557=0,0,1)+IF(R564=0,0,1)+IF(R571=0,0,1)+IF(R578=0,0,1)+IF(R585=0,0,1)+IF(R592=0,0,1)+IF(R599=0,0,1)+IF(R606=0,0,1)+IF(R613=0,0,1)+IF(R620=0,0,1)+IF(R627=0,0,1)+IF(R634=0,0,1)+IF(R641=0,0,1)+IF(R648=0,0,1)+IF(R655=0,0,1)+IF(R662=0,0,1)+IF(R669=0,0,1)+IF(R676=0,0,1)+IF(R683=0,0,1)+IF(R690=0,0,1)+IF(R697=0,0,1) -> 0 | Z18: 0
A19: штраф | W19: 18 | X19: 100 | Y19: =IF(S4=0,0,1)+IF(S11=0,0,1)+IF(S18=0,0,1)+IF(S25=0,0,1)+IF(S32=0,0,1)+IF(S39=0,0,1)+IF(S46=0,0,1)+IF(S53=0,0,1)+IF(S60=0,0,1)+IF(S67=0,0,1)+IF(S74=0,0,1)+IF(S81=0,0,1)+IF(S88=0,0,1)+IF(S95=0,0,1)+IF(S102=0,0,1)+IF(S109=0,0,1)+IF(S116=0,0,1)+IF(S123=0,0,1)+IF(S130=0,0,1)+IF(S137=0,0,1)+IF(S144=0,0,1)+IF(S151=0,0,1)+IF(S158=0,0,1)+IF(S165=0,0,1)+IF(S172=0,0,1)+IF(S179=0,0,1)+IF(S186=0,0,1)+IF(S193=0,0,1)+IF(S200=0,0,1)+IF(S207=0,0,1)+IF(S214=0,0,1)+IF(S221=0,0,1)+IF(S228=0,0,1)+IF(S235=0,0,1)+IF(S242=0,0,1)+IF(S249=0,0,1)+IF(S256=0,0,1)+IF(S263=0,0,1)+IF(S270=0,0,1)+IF(S277=0,0,1)+IF(S284=0,0,1)+IF(S291=0,0,1)+IF(S298=0,0,1)+IF(S305=0,0,1)+IF(S312=0,0,1)+IF(S319=0,0,1)+IF(S326=0,0,1)+IF(S333=0,0,1)+IF(S340=0,0,1)+IF(S347=0,0,1)+IF(S354=0,0,1)+IF(S361=0,0,1)+IF(S368=0,0,1)+IF(S375=0,0,1)+IF(S382=0,0,1)+IF(S389=0,0,1)+IF(S396=0,0,1)+IF(S403=0,0,1)+IF(S410=0,0,1)+IF(S417=0,0,1)+IF(S424=0,0,1)+IF(S431=0,0,1)+IF(S438=0,0,1)+IF(S445=0,0,1)+IF(S452=0,0,1)+IF(S459=0,0,1)+IF(S466=0,0,1)+IF(S473=0,0,1)+IF(S480=0,0,1)+IF(S487=0,0,1)+IF(S494=0,0,1)+IF(S501=0,0,1)+IF(S508=0,0,1)+IF(S515=0,0,1)+IF(S522=0,0,1)+IF(S529=0,0,1)+IF(S536=0,0,1)+IF(S543=0,0,1)+IF(S550=0,0,1)+IF(S557=0,0,1)+IF(S564=0,0,1)+IF(S571=0,0,1)+IF(S578=0,0,1)+IF(S585=0,0,1)+IF(S592=0,0,1)+IF(S599=0,0,1)+IF(S606=0,0,1)+IF(S613=0,0,1)+IF(S620=0,0,1)+IF(S627=0,0,1)+IF(S634=0,0,1)+IF(S641=0,0,1)+IF(S648=0,0,1)+IF(S655=0,0,1)+IF(S662=0,0,1)+IF(S669=0,0,1)+IF(S676=0,0,1)+IF(S683=0,0,1)+IF(S690=0,0,1)+IF(S697=0,0,1) -> 0 | Z19: 0
A20: баллы | B20: =IF(B18=0,0,Z2) -> 0 | C20: =IF(C18=0,0,Z3) -> 0 | D20: =IF(D18=0,0,Z4) -> 0 | E20: =IF(E18=0,0,Z5) -> 0 | F20: =IF(F18=0,0,Z6) -> 0 | G20: =IF(G18=0,0,Z7) -> 0 | H20: =IF(H18=0,0,Z8) -> 0 | I20: =IF(I18=0,0,Z9) -> 0 | J20: =IF(J18=0,0,Z10) -> 0 | K20: =IF(K18=0,0,Z11) -> 0 | L20: =IF(L18=0,0,Z12) -> 0 | M20: =IF(M18=0,0,Z13) -> 0 | N20: =IF(N18=0,0,Z14) -> 0 | O20: =IF(O18=0,0,Z15) -> 0 | P20: =IF(P18=0,0,Z16) -> 0 | Q20: =IF(Q18=0,0,Z17) -> 0 | R20: =IF(R18=0,0,Z18) -> 0 | S20: =IF(S18=0,0,Z19) -> 0 | T20: =IF(T18=0,0,Z20) -> 0 | U20: =IF(U18=0,0,Z21) -> 0 | W20: 19 | X20: 100 | Y20: =IF(T4=0,0,1)+IF(T11=0,0,1)+IF(T18=0,0,1)+IF(T25=0,0,1)+IF(T32=0,0,1)+IF(T39=0,0,1)+IF(T46=0,0,1)+IF(T53=0,0,1)+IF(T60=0,0,1)+IF(T67=0,0,1)+IF(T74=0,0,1)+IF(T81=0,0,1)+IF(T88=0,0,1)+IF(T95=0,0,1)+IF(T102=0,0,1)+IF(T109=0,0,1)+IF(T116=0,0,1)+IF(T123=0,0,1)+IF(T130=0,0,1)+IF(T137=0,0,1)+IF(T144=0,0,1)+IF(T151=0,0,1)+IF(T158=0,0,1)+IF(T165=0,0,1)+IF(T172=0,0,1)+IF(T179=0,0,1)+IF(T186=0,0,1)+IF(T193=0,0,1)+IF(T200=0,0,1)+IF(T207=0,0,1)+IF(T214=0,0,1)+IF(T221=0,0,1)+IF(T228=0,0,1)+IF(T235=0,0,1)+IF(T242=0,0,1)+IF(T249=0,0,1)+IF(T256=0,0,1)+IF(T263=0,0,1)+IF(T270=0,0,1)+IF(T277=0,0,1)+IF(T284=0,0,1)+IF(T291=0,0,1)+IF(T298=0,0,1)+IF(T305=0,0,1)+IF(T312=0,0,1)+IF(T319=0,0,1)+IF(T326=0,0,1)+IF(T333=0,0,1)+IF(T340=0,0,1)+IF(T347=0,0,1)+IF(T354=0,0,1)+IF(T361=0,0,1)+IF(T368=0,0,1)+IF(T375=0,0,1)+IF(T382=0,0,1)+IF(T389=0,0,1)+IF(T396=0,0,1)+IF(T403=0,0,1)+IF(T410=0,0,1)+IF(T417=0,0,1)+IF(T424=0,0,1)+IF(T431=0,0,1)+IF(T438=0,0,1)+IF(T445=0,0,1)+IF(T452=0,0,1)+IF(T459=0,0,1)+IF(T466=0,0,1)+IF(T473=0,0,1)+IF(T480=0,0,1)+IF(T487=0,0,1)+IF(T494=0,0,1)+IF(T501=0,0,1)+IF(T508=0,0,1)+IF(T515=0,0,1)+IF(T522=0,0,1)+IF(T529=0,0,1)+IF(T536=0,0,1)+IF(T543=0,0,1)+IF(T550=0,0,1)+IF(T557=0,0,1)+IF(T564=0,0,1)+IF(T571=0,0,1)+IF(T578=0,0,1)+IF(T585=0,0,1)+IF(T592=0,0,1)+IF(T599=0,0,1)+IF(T606=0,0,1)+IF(T613=0,0,1)+IF(T620=0,0,1)+IF(T627=0,0,1)+IF(T634=0,0,1)+IF(T641=0,0,1)+IF(T648=0,0,1)+IF(T655=0,0,1)+IF(T662=0,0,1)+IF(T669=0,0,1)+IF(T676=0,0,1)+IF(T683=0,0,1)+IF(T690=0,0,1)+IF(T697=0,0,1) -> 0 | Z20: 0
A21: итог время | B21: =SUM(B18:U19) -> 00:00:00 | I21: итог баллы | K21: =SUM(B20:U20) -> 0 | W21: 20 | X21: 100 | Y21: =IF(U4=0,0,1)+IF(U11=0,0,1)+IF(U18=0,0,1)+IF(U25=0,0,1)+IF(U32=0,0,1)+IF(U39=0,0,1)+IF(U46=0,0,1)+IF(U53=0,0,1)+IF(U60=0,0,1)+IF(U67=0,0,1)+IF(U74=0,0,1)+IF(U81=0,0,1)+IF(U88=0,0,1)+IF(U95=0,0,1)+IF(U102=0,0,1)+IF(U109=0,0,1)+IF(U116=0,0,1)+IF(U123=0,0,1)+IF(U130=0,0,1)+IF(U137=0,0,1)+IF(U144=0,0,1)+IF(U151=0,0,1)+IF(U158=0,0,1)+IF(U165=0,0,1)+IF(U172=0,0,1)+IF(U179=0,0,1)+IF(U186=0,0,1)+IF(U193=0,0,1)+IF(U200=0,0,1)+IF(U207=0,0,1)+IF(U214=0,0,1)+IF(U221=0,0,1)+IF(U228=0,0,1)+IF(U235=0,0,1)+IF(U242=0,0,1)+IF(U249=0,0,1)+IF(U256=0,0,1)+IF(U263=0,0,1)+IF(U270=0,0,1)+IF(U277=0,0,1)+IF(U284=0,0,1)+IF(U291=0,0,1)+IF(U298=0,0,1)+IF(U305=0,0,1)+IF(U312=0,0,1)+IF(U319=0,0,1)+IF(U326=0,0,1)+IF(U333=0,0,1)+IF(U340=0,0,1)+IF(U347=0,0,1)+IF(U354=0,0,1)+IF(U361=0,0,1)+IF(U368=0,0,1)+IF(U375=0,0,1)+IF(U382=0,0,1)+IF(U389=0,0,1)+IF(U396=0,0,1)+IF(U403=0,0,1)+IF(U410=0,0,1)+IF(U417=0,0,1)+IF(U424=0,0,1)+IF(U431=0,0,1)+IF(U438=0,0,1)+IF(U445=0,0,1)+IF(U452=0,0,1)+IF(U459=0,0,1)+IF(U466=0,0,1)+IF(U473=0,0,1)+IF(U480=0,0,1)+IF(U487=0,0,1)+IF(U494=0,0,1)+IF(U501=0,0,1)+IF(U508=0,0,1)+IF(U515=0,0,1)+IF(U522=0,0,1)+IF(U529=0,0,1)+IF(U536=0,0,1)+IF(U543=0,0,1)+IF(U550=0,0,1)+IF(U557=0,0,1)+IF(U564=0,0,1)+IF(U571=0,0,1)+IF(U578=0,0,1)+IF(U585=0,0,1)+IF(U592=0,0,1)+IF(U599=0,0,1)+IF(U606=0,0,1)+IF(U613=0,0,1)+IF(U620=0,0,1)+IF(U627=0,0,1)+IF(U634=0,0,1)+IF(U641=0,0,1)+IF(U648=0,0,1)+IF(U655=0,0,1)+IF(U662=0,0,1)+IF(U669=0,0,1)+IF(U676=0,0,1)+IF(U683=0,0,1)+IF(U690=0,0,1)+IF(U697=0,0,1) -> 0 | Z21: 0
A23: № | B23: ='Список команд'!B14 -> 4 | C23: команда | D23: ='Список команд'!D14:G14 -> Сибирский юмор
A24: трасса | B24: 1 | C24: 2 | D24: 3 | E24: 4 | F24: 5 | G24: 6 | H24: 7 | I24: 8 | J24: 9 | K24: 10 | L24: 11 | M24: 12 | N24: 13 | O24: 14 | P24: 15 | Q24: 16 | R24: 17 | S24: 18 | T24: 19 | U24: 20
A25: время | B25: 00:01:19 | C25: 00:04:19 | D25: 00:03:57 | E25: 00:02:31 | G25: 00:04:23 | I25: 00:03:46 | N25: 00:02:47 | P25: 00:03:39
A26: штраф
A27: баллы | B27: =IF(B25=0,0,Z2) -> 0.6976744186 | C27: =IF(C25=0,0,Z3) -> 1.034482759 | D27: =IF(D25=0,0,Z4) -> 0.7692307692 | E27: =IF(E25=0,0,Z5) -> 0.7692307692 | F27: =IF(F25=0,0,Z6) -> 0 | G27: =IF(G25=0,0,Z7) -> 1.363636364 | H27: =IF(H25=0,0,Z8) -> 0 | I27: =IF(I25=0,0,Z9) -> 3.333333333 | J27: =IF(J25=0,0,Z10) -> 0 | K27: =IF(K25=0,0,Z11) -> 0 | L27: =IF(L25=0,0,Z12) -> 0 | M27: =IF(M25=0,0,Z13) -> 0 | N27: =IF(N25=0,0,Z14) -> 2.727272727 | O27: =IF(O25=0,0,Z15) -> 0 | P27: =IF(P25=0,0,Z16) -> 1.764705882 | Q27: =IF(Q25=0,0,Z17) -> 0 | R27: =IF(R25=0,0,Z18) -> 0 | S27: =IF(S25=0,0,Z19) -> 0 | T27: =IF(T25=0,0,Z20) -> 0 | U27: =IF(U25=0,0,Z21) -> 0
A28: итог время | B28: =SUM(B25:U26) -> 00:26:41 | I28: итог баллы | K28: =SUM(B27:U27) -> 12.45956702
A30: № | B30: ='Список команд'!B18 -> 5 | C30: команда | D30: ='Список команд'!D18:G18 -> Korolev Climbing School
A31: трасса | B31: 1 | C31: 2 | D31: 3 | E31: 4 | F31: 5 | G31: 6 | H31: 7 | I31: 8 | J31: 9 | K31: 10 | L31: 11 | M31: 12 | N31: 13 | O31: 14 | P31: 15 | Q31: 16 | R31: 17 | S31: 18 | T31: 19 | U31: 20
A32: время | B32: 00:01:23 | H32: 00:16:55 | I32: 00:02:59 | J32: 00:15:30 | K32: 00:02:50
A33: штраф
A34: баллы | B34: =IF(B32=0,0,Z2) -> 0.6976744186 | C34: =IF(C32=0,0,Z3) -> 0 | D34: =IF(D32=0,0,Z4) -> 0 | E34: =IF(E32=0,0,Z5) -> 0 | F34: =IF(F32=0,0,Z6) -> 0 | G34: =IF(G32=0,0,Z7) -> 0 | H34: =IF(H32=0,0,Z8) -> 8.333333333 | I34: =IF(I32=0,0,Z9) -> 3.333333333 | J34: =IF(J32=0,0,Z10) -> 20 | K34: =IF(K32=0,0,Z11) -> 4.347826087 | L34: =IF(L32=0,0,Z12) -> 0 | M34: =IF(M32=0,0,Z13) -> 0 | N34: =IF(N32=0,0,Z14) -> 0 | O34: =IF(O32=0,0,Z15) -> 0 | P34: =IF(P32=0,0,Z16) -> 0 | Q34: =IF(Q32=0,0,Z17) -> 0 | R34: =IF(R32=0,0,Z18) -> 0 | S34: =IF(S32=0,0,Z19) -> 0 | T34: =IF(T32=0,0,Z20) -> 0 | U34: =IF(U32=0,0,Z21) -> 0
A35: итог время | B35: =SUM(B32:U33) -> 00:39:37 | I35: итог баллы | K35: =SUM(B34:U34) -> 36.71216717
A37: № | B37: ='Список команд'!B22 -> 6 | C37: команда | D37: ='Список команд'!D22:G22 -> JustForFun
A38: трасса | B38: 1 | C38: 2 | D38: 3 | E38: 4 | F38: 5 | G38: 6 | H38: 7 | I38: 8 | J38: 9 | K38: 10 | L38: 11 | M38: 12 | N38: 13 | O38: 14 | P38: 15 | Q38: 16 | R38: 17 | S38: 18 | T38: 19 | U38: 20
A39: время | B39: 00:02:49 | D39: 00:03:34 | H39: 00:17:46 | I39: 00:03:27 | K39: 00:03:53 | L39: 00:04:00
A40: штраф
A41: баллы | B41: =IF(B39=0,0,Z2) -> 0.6976744186 | C41: =IF(C39=0,0,Z3) -> 0 | D41: =IF(D39=0,0,Z4) -> 0.7692307692 | E41: =IF(E39=0,0,Z5) -> 0 | F41: =IF(F39=0,0,Z6) -> 0 | G41: =IF(G39=0,0,Z7) -> 0 | H41: =IF(H39=0,0,Z8) -> 8.333333333 | I41: =IF(I39=0,0,Z9) -> 3.333333333 | J41: =IF(J39=0,0,Z10) -> 0 | K41: =IF(K39=0,0,Z11) -> 4.347826087 | L41: =IF(L39=0,0,Z12) -> 14.28571429 | M41: =IF(M39=0,0,Z13) -> 0 | N41: =IF(N39=0,0,Z14) -> 0 | O41: =IF(O39=0,0,Z15) -> 0 | P41: =IF(P39=0,0,Z16) -> 0 | Q41: =IF(Q39=0,0,Z17) -> 0 | R41: =IF(R39=0,0,Z18) -> 0 | S41: =IF(S39=0,0,Z19) -> 0 | T41: =IF(T39=0,0,Z20) -> 0 | U41: =IF(U39=0,0,Z21) -> 0
A42: итог время | B42: =SUM(B39:U40) -> 00:35:29 | I42: итог баллы | K42: =SUM(B41:U41) -> 31.76711223
A44: № | B44: ='Список команд'!B26 -> 7 | C44: команда | D44: ='Список команд'!D26:G26 -> ГК МГСУ
A45: трасса | B45: 1 | C45: 2 | D45: 3 | E45: 4 | F45: 5 | G45: 6 | H45: 7 | I45: 8 | J45: 9 | K45: 10 | L45: 11 | M45: 12 | N45: 13 | O45: 14 | P45: 15 | Q45: 16 | R45: 17 | S45: 18 | T45: 19 | U45: 20
A46: время | B46: 00:01:05 | C46: 00:02:45 | D46: 00:02:03 | E46: 00:02:24 | F46: 00:05:19 | I46: 00:00:50 | K46: 00:02:07 | P46: 00:03:14
A47: штраф
A48: баллы | B48: =IF(B46=0,0,Z2) -> 0.6976744186 | C48: =IF(C46=0,0,Z3) -> 1.034482759 | D48: =IF(D46=0,0,Z4) -> 0.7692307692 | E48: =IF(E46=0,0,Z5) -> 0.7692307692 | F48: =IF(F46=0,0,Z6) -> 1.666666667 | G48: =IF(G46=0,0,Z7) -> 0 | H48: =IF(H46=0,0,Z8) -> 0 | I48: =IF(I46=0,0,Z9) -> 3.333333333 | J48: =IF(J46=0,0,Z10) -> 0 | K48: =IF(K46=0,0,Z11) -> 4.347826087 | L48: =IF(L46=0,0,Z12) -> 0 | M48: =IF(M46=0,0,Z13) -> 0 | N48: =IF(N46=0,0,Z14) -> 0 | O48: =IF(O46=0,0,Z15) -> 0 | P48: =IF(P46=0,0,Z16) -> 1.764705882 | Q48: =IF(Q46=0,0,Z17) -> 0 | R48: =IF(R46=0,0,Z18) -> 0 | S48: =IF(S46=0,0,Z19) -> 0 | T48: =IF(T46=0,0,Z20) -> 0 | U48: =IF(U46=0,0,Z21) -> 0
A49: итог время | B49: =SUM(B46:U47) -> 00:19:47 | I49: итог баллы | K49: =SUM(B48:U48) -> 14.38315068
A51: № | B51: ='Список команд'!B30 -> 8 | C51: команда | D51: ='Список команд'!D30:G30 -> M&M's
A52: трасса | B52: 1 | C52: 2 | D52: 3 | E52: 4 | F52: 5 | G52: 6 | H52: 7 | I52: 8 | J52: 9 | K52: 10 | L52: 11 | M52: 12 | N52: 13 | O52: 14 | P52: 15 | Q52: 16 | R52: 17 | S52: 18 | T52: 19 | U52: 20
A53: время
A54: штраф
A55: баллы | B55: =IF(B53=0,0,Z2) -> 0 | C55: =IF(C53=0,0,Z3) -> 0 | D55: =IF(D53=0,0,Z4) -> 0 | E55: =IF(E53=0,0,Z5) -> 0 | F55: =IF(F53=0,0,Z6) -> 0 | G55: =IF(G53=0,0,Z7) -> 0 | H55: =IF(H53=0,0,Z8) -> 0 | I55: =IF(I53=0,0,Z9) -> 0 | J55: =IF(J53=0,0,Z10) -> 0 | K55: =IF(K53=0,0,Z11) -> 0 | L55: =IF(L53=0,0,Z12) -> 0 | M55: =IF(M53=0,0,Z13) -> 0 | N55: =IF(N53=0,0,Z14) -> 0 | O55: =IF(O53=0,0,Z15) -> 0 | P55: =IF(P53=0,0,Z16) -> 0 | Q55: =IF(Q53=0,0,Z17) -> 0 | R55: =IF(R53=0,0,Z18) -> 0 | S55: =IF(S53=0,0,Z19) -> 0 | T55: =IF(T53=0,0,Z20) -> 0 | U55: =IF(U53=0,0,Z21) -> 0
A56: итог время | B56: =SUM(B53:U54) -> 00:00:00 | I56: итог баллы | K56: =SUM(B55:U55) -> 0
A58: № | B58: ='Список команд'!B34 -> 9 | C58: команда | D58: ='Список команд'!D34:G34 -> Экс-МГСУ
A59: трасса | B59: 1 | C59: 2 | D59: 3 | E59: 4 | F59: 5 | G59: 6 | H59: 7 | I59: 8 | J59: 9 | K59: 10 | L59: 11 | M59: 12 | N59: 13 | O59: 14 | P59: 15 | Q59: 16 | R59: 17 | S59: 18 | T59: 19 | U59: 20
A60: время
A61: штраф
A62: баллы | B62: =IF(B60=0,0,Z2) -> 0 | C62: =IF(C60=0,0,Z3) -> 0 | D62: =IF(D60=0,0,Z4) -> 0 | E62: =IF(E60=0,0,Z5) -> 0 | F62: =IF(F60=0,0,Z6) -> 0 | G62: =IF(G60=0,0,Z7) -> 0 | H62: =IF(H60=0,0,Z8) -> 0 | I62: =IF(I60=0,0,Z9) -> 0 | J62: =IF(J60=0,0,Z10) -> 0 | K62: =IF(K60=0,0,Z11) -> 0 | L62: =IF(L60=0,0,Z12) -> 0 | M62: =IF(M60=0,0,Z13) -> 0 | N62: =IF(N60=0,0,Z14) -> 0 | O62: =IF(O60=0,0,Z15) -> 0 | P62: =IF(P60=0,0,Z16) -> 0 | Q62: =IF(Q60=0,0,Z17) -> 0 | R62: =IF(R60=0,0,Z18) -> 0 | S62: =IF(S60=0,0,Z19) -> 0 | T62: =IF(T60=0,0,Z20) -> 0 | U62: =IF(U60=0,0,Z21) -> 0
A63: итог время | B63: =SUM(B60:U61) -> 00:00:00 | I63: итог баллы | K63: =SUM(B62:U62) -> 0
A65: № | B65: ='Список команд'!B38 -> 10 | C65: команда | D65: ='Список команд'!D38:G38 -> ГК МГСУ
A66: трасса | B66: 1 | C66: 2 | D66: 3 | E66: 4 | F66: 5 | G66: 6 | H66: 7 | I66: 8 | J66: 9 | K66: 10 | L66: 11 | M66: 12 | N66: 13 | O66: 14 | P66: 15 | Q66: 16 | R66: 17 | S66: 18 | T66: 19 | U66: 20
A67: время | B67: 00:01:26 | D67: 00:03:15 | E67: 00:00:54 | I67: 00:02:48 | K67: 00:02:00 | P67: 00:03:19
A68: штраф
A69: баллы | B69: =IF(B67=0,0,Z2) -> 0.6976744186 | C69: =IF(C67=0,0,Z3) -> 0 | D69: =IF(D67=0,0,Z4) -> 0.7692307692 | E69: =IF(E67=0,0,Z5) -> 0.7692307692 | F69: =IF(F67=0,0,Z6) -> 0 | G69: =IF(G67=0,0,Z7) -> 0 | H69: =IF(H67=0,0,Z8) -> 0 | I69: =IF(I67=0,0,Z9) -> 3.333333333 | J69: =IF(J67=0,0,Z10) -> 0 | K69: =IF(K67=0,0,Z11) -> 4.347826087 | L69: =IF(L67=0,0,Z12) -> 0 | M69: =IF(M67=0,0,Z13) -> 0 | N69: =IF(N67=0,0,Z14) -> 0 | O69: =IF(O67=0,0,Z15) -> 0 | P69: =IF(P67=0,0,Z16) -> 1.764705882 | Q69: =IF(Q67=0,0,Z17) -> 0 | R69: =IF(R67=0,0,Z18) -> 0 | S69: =IF(S67=0,0,Z19) -> 0 | T69: =IF(T67=0,0,Z20) -> 0 | U69: =IF(U67=0,0,Z21) -> 0
A70: итог время | B70: =SUM(B67:U68) -> 00:13:42 | I70: итог баллы | K70: =SUM(B69:U69) -> 11.68200126
A72: № | B72: ='Список команд'!B42 -> 11 | C72: команда | D72: ='Список команд'!D42:G42 -> Королев
A73: трасса | B73: 1 | C73: 2 | D73: 3 | E73: 4 | F73: 5 | G73: 6 | H73: 7 | I73: 8 | J73: 9 | K73: 10 | L73: 11 | M73: 12 | N73: 13 | O73: 14 | P73: 15 | Q73: 16 | R73: 17 | S73: 18 | T73: 19 | U73: 20
A74: время | H74: 00:16:07 | I74: 00:01:02 | J74: 00:13:23 | K74: 00:02:16 | L74: 00:06:16 | O74: 00:11:43
A75: штраф
A76: баллы | B76: =IF(B74=0,0,Z2) -> 0 | C76: =IF(C74=0,0,Z3) -> 0 | D76: =IF(D74=0,0,Z4) -> 0 | E76: =IF(E74=0,0,Z5) -> 0 | F76: =IF(F74=0,0,Z6) -> 0 | G76: =IF(G74=0,0,Z7) -> 0 | H76: =IF(H74=0,0,Z8) -> 8.333333333 | I76: =IF(I74=0,0,Z9) -> 3.333333333 | J76: =IF(J74=0,0,Z10) -> 20 | K76: =IF(K74=0,0,Z11) -> 4.347826087 | L76: =IF(L74=0,0,Z12) -> 14.28571429 | M76: =IF(M74=0,0,Z13) -> 0 | N76: =IF(N74=0,0,Z14) -> 0 | O76: =IF(O74=0,0,Z15) -> 12 | P76: =IF(P74=0,0,Z16) -> 0 | Q76: =IF(Q74=0,0,Z17) -> 0 | R76: =IF(R74=0,0,Z18) -> 0 | S76: =IF(S74=0,0,Z19) -> 0 | T76: =IF(T74=0,0,Z20) -> 0 | U76: =IF(U74=0,0,Z21) -> 0
A77: итог время | B77: =SUM(B74:U75) -> 00:50:47 | I77: итог баллы | K77: =SUM(B76:U76) -> 62.30020704
A79: № | B79: ='Список команд'!B46 -> 12 | C79: команда | D79: ='Список команд'!D46:G46 -> Хухтилампи
A80: трасса | B80: 1 | C80: 2 | D80: 3 | E80: 4 | F80: 5 | G80: 6 | H80: 7 | I80: 8 | J80: 9 | K80: 10 | L80: 11 | M80: 12 | N80: 13 | O80: 14 | P80: 15 | Q80: 16 | R80: 17 | S80: 18 | T80: 19 | U80: 20
A81: время | B81: 00:03:06 | D81: 00:04:30 | E81: 00:02:37 | P81: 00:04:33
A82: штраф
A83: баллы | B83: =IF(B81=0,0,Z2) -> 0.6976744186 | C83: =IF(C81=0,0,Z3) -> 0 | D83: =IF(D81=0,0,Z4) -> 0.7692307692 | E83: =IF(E81=0,0,Z5) -> 0.7692307692 | F83: =IF(F81=0,0,Z6) -> 0 | G83: =IF(G81=0,0,Z7) -> 0 | H83: =IF(H81=0,0,Z8) -> 0 | I83: =IF(I81=0,0,Z9) -> 0 | J83: =IF(J81=0,0,Z10) -> 0 | K83: =IF(K81=0,0,Z11) -> 0 | L83: =IF(L81=0,0,Z12) -> 0 | M83: =IF(M81=0,0,Z13) -> 0 | N83: =IF(N81=0,0,Z14) -> 0 | O83: =IF(O81=0,0,Z15) -> 0 | P83: =IF(P81=0,0,Z16) -> 1.764705882 | Q83: =IF(Q81=0,0,Z17) -> 0 | R83: =IF(R81=0,0,Z18) -> 0 | S83: =IF(S81=0,0,Z19) -> 0 | T83: =IF(T81=0,0,Z20) -> 0 | U83: =IF(U81=0,0,Z21) -> 0
A84: итог время | B84: =SUM(B81:U82) -> 00:14:46 | I84: итог баллы | K84: =SUM(B83:U83) -> 4.000841839
A86: № | B86: ='Список команд'!B50 -> 13 | C86: команда | D86: ='Список команд'!D50:G50 -> Странник
A87: трасса | B87: 1 | C87: 2 | D87: 3 | E87: 4 | F87: 5 | G87: 6 | H87: 7 | I87: 8 | J87: 9 | K87: 10 | L87: 11 | M87: 12 | N87: 13 | O87: 14 | P87: 15 | Q87: 16 | R87: 17 | S87: 18 | T87: 19 | U87: 20
A88: время
A89: штраф
A90: баллы | B90: =IF(B88=0,0,Z2) -> 0 | C90: =IF(C88=0,0,Z3) -> 0 | D90: =IF(D88=0,0,Z4) -> 0 | E90: =IF(E88=0,0,Z5) -> 0 | F90: =IF(F88=0,0,Z6) -> 0 | G90: =IF(G88=0,0,Z7) -> 0 | H90: =IF(H88=0,0,Z8) -> 0 | I90: =IF(I88=0,0,Z9) -> 0 | J90: =IF(J88=0,0,Z10) -> 0 | K90: =IF(K88=0,0,Z11) -> 0 | L90: =IF(L88=0,0,Z12) -> 0 | M90: =IF(M88=0,0,Z13) -> 0 | N90: =IF(N88=0,0,Z14) -> 0 | O90: =IF(O88=0,0,Z15) -> 0 | P90: =IF(P88=0,0,Z16) -> 0 | Q90: =IF(Q88=0,0,Z17) -> 0 | R90: =IF(R88=0,0,Z18) -> 0 | S90: =IF(S88=0,0,Z19) -> 0 | T90: =IF(T88=0,0,Z20) -> 0 | U90: =IF(U88=0,0,Z21) -> 0
A91: итог время | B91: =SUM(B88:U89) -> 00:00:00 | I91: итог баллы | K91: =SUM(B90:U90) -> 0
A93: № | B93: ='Список команд'!B54 -> 14 | C93: команда | D93: ='Список команд'!D54:G54 -> АК МАИ
A94: трасса | B94: 1 | C94: 2 | D94: 3 | E94: 4 | F94: 5 | G94: 6 | H94: 7 | I94: 8 | J94: 9 | K94: 10 | L94: 11 | M94: 12 | N94: 13 | O94: 14 | P94: 15 | Q94: 16 | R94: 17 | S94: 18 | T94: 19 | U94: 20
A95: время | B95: 00:01:56 | D95: 00:03:52 | E95: 00:01:38 | H95: 00:16:55 | I95: 00:02:43 | K95: 00:02:59 | N95: 00:03:20 | P95: 00:03:33
A96: штраф
A97: баллы | B97: =IF(B95=0,0,Z2) -> 0.6976744186 | C97: =IF(C95=0,0,Z3) -> 0 | D97: =IF(D95=0,0,Z4) -> 0.7692307692 | E97: =IF(E95=0,0,Z5) -> 0.7692307692 | F97: =IF(F95=0,0,Z6) -> 0 | G97: =IF(G95=0,0,Z7) -> 0 | H97: =IF(H95=0,0,Z8) -> 8.333333333 | I97: =IF(I95=0,0,Z9) -> 3.333333333 | J97: =IF(J95=0,0,Z10) -> 0 | K97: =IF(K95=0,0,Z11) -> 4.347826087 | L97: =IF(L95=0,0,Z12) -> 0 | M97: =IF(M95=0,0,Z13) -> 0 | N97: =IF(N95=0,0,Z14) -> 2.727272727 | O97: =IF(O95=0,0,Z15) -> 0 | P97: =IF(P95=0,0,Z16) -> 1.764705882 | Q97: =IF(Q95=0,0,Z17) -> 0 | R97: =IF(R95=0,0,Z18) -> 0 | S97: =IF(S95=0,0,Z19) -> 0 | T97: =IF(T95=0,0,Z20) -> 0 | U97: =IF(U95=0,0,Z21) -> 0
A98: итог время | B98: =SUM(B95:U96) -> 00:36:56 | I98: итог баллы | K98: =SUM(B97:U97) -> 22.74260732
A100: № | B100: ='Список команд'!B58 -> 15 | C100: команда | D100: ='Список команд'!D58:G58 -> вега
A101: трасса | B101: 1 | C101: 2 | D101: 3 | E101: 4 | F101: 5 | G101: 6 | H101: 7 | I101: 8 | J101: 9 | K101: 10 | L101: 11 | M101: 12 | N101: 13 | O101: 14 | P101: 15 | Q101: 16 | R101: 17 | S101: 18 | T101: 19 | U101: 20
A102: время | B102: 00:03:04 | C102: 00:03:39 | D102: 00:03:06 | E102: 00:01:20 | F102: 00:06:52 | G102: 00:04:57 | I102: 00:02:14 | N102: 00:02:24 | P102: 00:05:46
A103: штраф
A104: баллы | B104: =IF(B102=0,0,Z2) -> 0.6976744186 | C104: =IF(C102=0,0,Z3) -> 1.034482759 | D104: =IF(D102=0,0,Z4) -> 0.7692307692 | E104: =IF(E102=0,0,Z5) -> 0.7692307692 | F104: =IF(F102=0,0,Z6) -> 1.666666667 | G104: =IF(G102=0,0,Z7) -> 1.363636364 | H104: =IF(H102=0,0,Z8) -> 0 | I104: =IF(I102=0,0,Z9) -> 3.333333333 | J104: =IF(J102=0,0,Z10) -> 0 | K104: =IF(K102=0,0,Z11) -> 0 | L104: =IF(L102=0,0,Z12) -> 0 | M104: =IF(M102=0,0,Z13) -> 0 | N104: =IF(N102=0,0,Z14) -> 2.727272727 | O104: =IF(O102=0,0,Z15) -> 0 | P104: =IF(P102=0,0,Z16) -> 1.764705882 | Q104: =IF(Q102=0,0,Z17) -> 0 | R104: =IF(R102=0,0,Z18) -> 0 | S104: =IF(S102=0,0,Z19) -> 0 | T104: =IF(T102=0,0,Z20) -> 0 | U104: =IF(U102=0,0,Z21) -> 0
A105: итог время | B105: =SUM(B102:U103) -> 00:33:22 | I105: итог баллы | K105: =SUM(B104:U104) -> 14.12623369
A107: № | B107: ='Список команд'!B62 -> 16 | C107: команда | D107: ='Список команд'!D62:G62 -> МЭИ
A108: трасса | B108: 1 | C108: 2 | D108: 3 | E108: 4 | F108: 5 | G108: 6 | H108: 7 | I108: 8 | J108: 9 | K108: 10 | L108: 11 | M108: 12 | N108: 13 | O108: 14 | P108: 15 | Q108: 16 | R108: 17 | S108: 18 | T108: 19 | U108: 20
A109: время | B109: 00:04:25 | D109: 00:03:42 | E109: 00:01:54 | I109: 00:03:44 | K109: 00:01:09 | L109: 00:02:30 | M109: 00:08:51 | N109: 00:02:33 | P109: 00:04:23
A110: штраф
A111: баллы | B111: =IF(B109=0,0,Z2) -> 0.6976744186 | C111: =IF(C109=0,0,Z3) -> 0 | D111: =IF(D109=0,0,Z4) -> 0.7692307692 | E111: =IF(E109=0,0,Z5) -> 0.7692307692 | F111: =IF(F109=0,0,Z6) -> 0 | G111: =IF(G109=0,0,Z7) -> 0 | H111: =IF(H109=0,0,Z8) -> 0 | I111: =IF(I109=0,0,Z9) -> 3.333333333 | J111: =IF(J109=0,0,Z10) -> 0 | K111: =IF(K109=0,0,Z11) -> 4.347826087 | L111: =IF(L109=0,0,Z12) -> 14.28571429 | M111: =IF(M109=0,0,Z13) -> 5.454545455 | N111: =IF(N109=0,0,Z14) -> 2.727272727 | O111: =IF(O109=0,0,Z15) -> 0 | P111: =IF(P109=0,0,Z16) -> 1.764705882 | Q111: =IF(Q109=0,0,Z17) -> 0 | R111: =IF(R109=0,0,Z18) -> 0 | S111: =IF(S109=0,0,Z19) -> 0 | T111: =IF(T109=0,0,Z20) -> 0 | U111: =IF(U109=0,0,Z21) -> 0
A112: итог время | B112: =SUM(B109:U110) -> 00:33:11 | I112: итог баллы | K112: =SUM(B111:U111) -> 34.14953373
A114: № | B114: ='Список команд'!B66 -> 17 | C114: команда | D114: ='Список команд'!D66:G66 -> ЙЫЛДЫЗ
A115: трасса | B115: 1 | C115: 2 | D115: 3 | E115: 4 | F115: 5 | G115: 6 | H115: 7 | I115: 8 | J115: 9 | K115: 10 | L115: 11 | M115: 12 | N115: 13 | O115: 14 | P115: 15 | Q115: 16 | R115: 17 | S115: 18 | T115: 19 | U115: 20
A116: время | B116: 00:01:57 | C116: 00:02:35 | D116: 00:03:12 | E116: 00:02:23 | F116: 00:06:53 | G116: 00:03:58 | I116: 00:01:42 | N116: 00:02:36
A117: штраф
A118: баллы | B118: =IF(B116=0,0,Z2) -> 0.6976744186 | C118: =IF(C116=0,0,Z3) -> 1.034482759 | D118: =IF(D116=0,0,Z4) -> 0.7692307692 | E118: =IF(E116=0,0,Z5) -> 0.7692307692 | F118: =IF(F116=0,0,Z6) -> 1.666666667 | G118: =IF(G116=0,0,Z7) -> 1.363636364 | H118: =IF(H116=0,0,Z8) -> 0 | I118: =IF(I116=0,0,Z9) -> 3.333333333 | J118: =IF(J116=0,0,Z10) -> 0 | K118: =IF(K116=0,0,Z11) -> 0 | L118: =IF(L116=0,0,Z12) -> 0 | M118: =IF(M116=0,0,Z13) -> 0 | N118: =IF(N116=0,0,Z14) -> 2.727272727 | O118: =IF(O116=0,0,Z15) -> 0 | P118: =IF(P116=0,0,Z16) -> 0 | Q118: =IF(Q116=0,0,Z17) -> 0 | R118: =IF(R116=0,0,Z18) -> 0 | S118: =IF(S116=0,0,Z19) -> 0 | T118: =IF(T116=0,0,Z20) -> 0 | U118: =IF(U116=0,0,Z21) -> 0
A119: итог время | B119: =SUM(B116:U117) -> 00:25:16 | I119: итог баллы | K119: =SUM(B118:U118) -> 12.36152781
A121: № | B121: ='Список команд'!B70 -> 18 | C121: команда | D121: ='Список команд'!D70:G70 -> Питер1
A122: трасса | B122: 1 | C122: 2 | D122: 3 | E122: 4 | F122: 5 | G122: 6 | H122: 7 | I122: 8 | J122: 9 | K122: 10 | L122: 11 | M122: 12 | N122: 13 | O122: 14 | P122: 15 | Q122: 16 | R122: 17 | S122: 18 | T122: 19 | U122: 20
A123: время | B123: 00:02:51 | G123: 00:03:40 | H123: 00:14:53 | K123: 00:02:50 | N123: 00:02:50 | O123: 00:07:10 | P123: 00:03:33
A124: штраф
A125: баллы | B125: =IF(B123=0,0,Z2) -> 0.6976744186 | C125: =IF(C123=0,0,Z3) -> 0 | D125: =IF(D123=0,0,Z4) -> 0 | E125: =IF(E123=0,0,Z5) -> 0 | F125: =IF(F123=0,0,Z6) -> 0 | G125: =IF(G123=0,0,Z7) -> 1.363636364 | H125: =IF(H123=0,0,Z8) -> 8.333333333 | I125: =IF(I123=0,0,Z9) -> 0 | J125: =IF(J123=0,0,Z10) -> 0 | K125: =IF(K123=0,0,Z11) -> 4.347826087 | L125: =IF(L123=0,0,Z12) -> 0 | M125: =IF(M123=0,0,Z13) -> 0 | N125: =IF(N123=0,0,Z14) -> 2.727272727 | O125: =IF(O123=0,0,Z15) -> 12 | P125: =IF(P123=0,0,Z16) -> 1.764705882 | Q125: =IF(Q123=0,0,Z17) -> 0 | R125: =IF(R123=0,0,Z18) -> 0 | S125: =IF(S123=0,0,Z19) -> 0 | T125: =IF(T123=0,0,Z20) -> 0 | U125: =IF(U123=0,0,Z21) -> 0
A126: итог время | B126: =SUM(B123:U124) -> 00:37:47 | I126: итог баллы | K126: =SUM(B125:U125) -> 31.23444881
A128: № | B128: ='Список команд'!B74 -> 19 | C128: команда | D128: ='Список команд'!D74:G74 -> Позитрон/АК МАИ
A129: трасса | B129: 1 | C129: 2 | D129: 3 | E129: 4 | F129: 5 | G129: 6 | H129: 7 | I129: 8 | J129: 9 | K129: 10 | L129: 11 | M129: 12 | N129: 13 | O129: 14 | P129: 15 | Q129: 16 | R129: 17 | S129: 18 | T129: 19 | U129: 20
A130: время | B130: 00:03:09 | C130: 00:03:47 | D130: 00:05:18 | E130: 00:01:38 | F130: 00:09:40 | I130: 00:02:21 | P130: 00:05:41
A131: штраф
A132: баллы | B132: =IF(B130=0,0,Z2) -> 0.6976744186 | C132: =IF(C130=0,0,Z3) -> 1.034482759 | D132: =IF(D130=0,0,Z4) -> 0.7692307692 | E132: =IF(E130=0,0,Z5) -> 0.7692307692 | F132: =IF(F130=0,0,Z6) -> 1.666666667 | G132: =IF(G130=0,0,Z7) -> 0 | H132: =IF(H130=0,0,Z8) -> 0 | I132: =IF(I130=0,0,Z9) -> 3.333333333 | J132: =IF(J130=0,0,Z10) -> 0 | K132: =IF(K130=0,0,Z11) -> 0 | L132: =IF(L130=0,0,Z12) -> 0 | M132: =IF(M130=0,0,Z13) -> 0 | N132: =IF(N130=0,0,Z14) -> 0 | O132: =IF(O130=0,0,Z15) -> 0 | P132: =IF(P130=0,0,Z16) -> 1.764705882 | Q132: =IF(Q130=0,0,Z17) -> 0 | R132: =IF(R130=0,0,Z18) -> 0 | S132: =IF(S130=0,0,Z19) -> 0 | T132: =IF(T130=0,0,Z20) -> 0 | U132: =IF(U130=0,0,Z21) -> 0
A133: итог время | B133: =SUM(B130:U131) -> 00:31:34 | I133: итог баллы | K133: =SUM(B132:U132) -> 10.0353246
A135: № | B135: ='Список команд'!B78 -> 20 | C135: команда | D135: ='Список команд'!D78:G78 -> Стасон и я
A136: трасса | B136: 1 | C136: 2 | D136: 3 | E136: 4 | F136: 5 | G136: 6 | H136: 7 | I136: 8 | J136: 9 | K136: 10 | L136: 11 | M136: 12 | N136: 13 | O136: 14 | P136: 15 | Q136: 16 | R136: 17 | S136: 18 | T136: 19 | U136: 20
A137: время | B137: 00:00:53 | C137: 00:01:56 | D137: 00:01:56 | E137: 00:01:06 | H137: 00:08:38 | I137: 00:01:08 | J137: 00:09:10 | K137: 00:02:20 | L137: 00:03:33 | N137: 00:03:45 | P137: 00:02:59
A138: штраф
A139: баллы | B139: =IF(B137=0,0,Z2) -> 0.6976744186 | C139: =IF(C137=0,0,Z3) -> 1.034482759 | D139: =IF(D137=0,0,Z4) -> 0.7692307692 | E139: =IF(E137=0,0,Z5) -> 0.7692307692 | F139: =IF(F137=0,0,Z6) -> 0 | G139: =IF(G137=0,0,Z7) -> 0 | H139: =IF(H137=0,0,Z8) -> 8.333333333 | I139: =IF(I137=0,0,Z9) -> 3.333333333 | J139: =IF(J137=0,0,Z10) -> 20 | K139: =IF(K137=0,0,Z11) -> 4.347826087 | L139: =IF(L137=0,0,Z12) -> 14.28571429 | M139: =IF(M137=0,0,Z13) -> 0 | N139: =IF(N137=0,0,Z14) -> 2.727272727 | O139: =IF(O137=0,0,Z15) -> 0 | P139: =IF(P137=0,0,Z16) -> 1.764705882 | Q139: =IF(Q137=0,0,Z17) -> 0 | R139: =IF(R137=0,0,Z18) -> 0 | S139: =IF(S137=0,0,Z19) -> 0 | T139: =IF(T137=0,0,Z20) -> 0 | U139: =IF(U137=0,0,Z21) -> 0
A140: итог время | B140: =SUM(B137:U138) -> 00:37:24 | I140: итог баллы | K140: =SUM(B139:U139) -> 58.06280436
A142: № | B142: ='Список команд'!B82 -> 21 | C142: команда | D142: ='Список команд'!D82:G82 -> Shlang-Team-1
A143: трасса | B143: 1 | C143: 2 | D143: 3 | E143: 4 | F143: 5 | G143: 6 | H143: 7 | I143: 8 | J143: 9 | K143: 10 | L143: 11 | M143: 12 | N143: 13 | O143: 14 | P143: 15 | Q143: 16 | R143: 17 | S143: 18 | T143: 19 | U143: 20
A144: время | I144: 00:02:42 | K144: 00:04:08 | N144: 00:03:30 | P144: 00:03:44
A145: штраф
A146: баллы | B146: =IF(B144=0,0,Z2) -> 0 | C146: =IF(C144=0,0,Z3) -> 0 | D146: =IF(D144=0,0,Z4) -> 0 | E146: =IF(E144=0,0,Z5) -> 0 | F146: =IF(F144=0,0,Z6) -> 0 | G146: =IF(G144=0,0,Z7) -> 0 | H146: =IF(H144=0,0,Z8) -> 0 | I146: =IF(I144=0,0,Z9) -> 3.333333333 | J146: =IF(J144=0,0,Z10) -> 0 | K146: =IF(K144=0,0,Z11) -> 4.347826087 | L146: =IF(L144=0,0,Z12) -> 0 | M146: =IF(M144=0,0,Z13) -> 0 | N146: =IF(N144=0,0,Z14) -> 2.727272727 | O146: =IF(O144=0,0,Z15) -> 0 | P146: =IF(P144=0,0,Z16) -> 1.764705882 | Q146: =IF(Q144=0,0,Z17) -> 0 | R146: =IF(R144=0,0,Z18) -> 0 | S146: =IF(S144=0,0,Z19) -> 0 | T146: =IF(T144=0,0,Z20) -> 0 | U146: =IF(U144=0,0,Z21) -> 0
A147: итог время | B147: =SUM(B144:U145) -> 00:14:04 | I147: итог баллы | K147: =SUM(B146:U146) -> 12.17313803
A149: № | B149: ='Список команд'!B86 -> 22 | C149: команда | D149: ='Список команд'!D86:G86 -> Штурм
A150: трасса | B150: 1 | C150: 2 | D150: 3 | E150: 4 | F150: 5 | G150: 6 | H150: 7 | I150: 8 | J150: 9 | K150: 10 | L150: 11 | M150: 12 | N150: 13 | O150: 14 | P150: 15 | Q150: 16 | R150: 17 | S150: 18 | T150: 19 | U150: 20
A151: время
A152: штраф
A153: баллы | B153: =IF(B151=0,0,Z2) -> 0 | C153: =IF(C151=0,0,Z3) -> 0 | D153: =IF(D151=0,0,Z4) -> 0 | E153: =IF(E151=0,0,Z5) -> 0 | F153: =IF(F151=0,0,Z6) -> 0 | G153: =IF(G151=0,0,Z7) -> 0 | H153: =IF(H151=0,0,Z8) -> 0 | I153: =IF(I151=0,0,Z9) -> 0 | J153: =IF(J151=0,0,Z10) -> 0 | K153: =IF(K151=0,0,Z11) -> 0 | L153: =IF(L151=0,0,Z12) -> 0 | M153: =IF(M151=0,0,Z13) -> 0 | N153: =IF(N151=0,0,Z14) -> 0 | O153: =IF(O151=0,0,Z15) -> 0 | P153: =IF(P151=0,0,Z16) -> 0 | Q153: =IF(Q151=0,0,Z17) -> 0 | R153: =IF(R151=0,0,Z18) -> 0 | S153: =IF(S151=0,0,Z19) -> 0 | T153: =IF(T151=0,0,Z20) -> 0 | U153: =IF(U151=0,0,Z21) -> 0
A154: итог время | B154: =SUM(B151:U152) -> 00:00:00 | I154: итог баллы | K154: =SUM(B153:U153) -> 0
A156: № | B156: ='Список команд'!B90 -> 23 | C156: команда | D156: ='Список команд'!D90:G90 -> Воронеж
A157: трасса | B157: 1 | C157: 2 | D157: 3 | E157: 4 | F157: 5 | G157: 6 | H157: 7 | I157: 8 | J157: 9 | K157: 10 | L157: 11 | M157: 12 | N157: 13 | O157: 14 | P157: 15 | Q157: 16 | R157: 17 | S157: 18 | T157: 19 | U157: 20
A158: время | B158: 00:02:04 | C158: 00:02:58 | E158: 00:03:20 | F158: 00:08:50 | H158: 00:15:20 | I158: 00:04:02 | N158: 00:04:37
A159: штраф
A160: баллы | B160: =IF(B158=0,0,Z2) -> 0.6976744186 | C160: =IF(C158=0,0,Z3) -> 1.034482759 | D160: =IF(D158=0,0,Z4) -> 0 | E160: =IF(E158=0,0,Z5) -> 0.7692307692 | F160: =IF(F158=0,0,Z6) -> 1.666666667 | G160: =IF(G158=0,0,Z7) -> 0 | H160: =IF(H158=0,0,Z8) -> 8.333333333 | I160: =IF(I158=0,0,Z9) -> 3.333333333 | J160: =IF(J158=0,0,Z10) -> 0 | K160: =IF(K158=0,0,Z11) -> 0 | L160: =IF(L158=0,0,Z12) -> 0 | M160: =IF(M158=0,0,Z13) -> 0 | N160: =IF(N158=0,0,Z14) -> 2.727272727 | O160: =IF(O158=0,0,Z15) -> 0 | P160: =IF(P158=0,0,Z16) -> 0 | Q160: =IF(Q158=0,0,Z17) -> 0 | R160: =IF(R158=0,0,Z18) -> 0 | S160: =IF(S158=0,0,Z19) -> 0 | T160: =IF(T158=0,0,Z20) -> 0 | U160: =IF(U158=0,0,Z21) -> 0
A161: итог время | B161: =SUM(B158:U159) -> 00:41:11 | I161: итог баллы | K161: =SUM(B160:U160) -> 18.56199401
A163: № | B163: ='Список команд'!B94 -> 24 | C163: команда | D163: ='Список команд'!D94:G94 -> Мэи
A164: трасса | B164: 1 | C164: 2 | D164: 3 | E164: 4 | F164: 5 | G164: 6 | H164: 7 | I164: 8 | J164: 9 | K164: 10 | L164: 11 | M164: 12 | N164: 13 | O164: 14 | P164: 15 | Q164: 16 | R164: 17 | S164: 18 | T164: 19 | U164: 20
A165: время | C165: 00:02:39 | I165: 00:02:39 | K165: 00:03:32 | N165: 00:03:13 | P165: 00:04:11
A166: штраф
A167: баллы | B167: =IF(B165=0,0,Z2) -> 0 | C167: =IF(C165=0,0,Z3) -> 1.034482759 | D167: =IF(D165=0,0,Z4) -> 0 | E167: =IF(E165=0,0,Z5) -> 0 | F167: =IF(F165=0,0,Z6) -> 0 | G167: =IF(G165=0,0,Z7) -> 0 | H167: =IF(H165=0,0,Z8) -> 0 | I167: =IF(I165=0,0,Z9) -> 3.333333333 | J167: =IF(J165=0,0,Z10) -> 0 | K167: =IF(K165=0,0,Z11) -> 4.347826087 | L167: =IF(L165=0,0,Z12) -> 0 | M167: =IF(M165=0,0,Z13) -> 0 | N167: =IF(N165=0,0,Z14) -> 2.727272727 | O167: =IF(O165=0,0,Z15) -> 0 | P167: =IF(P165=0,0,Z16) -> 1.764705882 | Q167: =IF(Q165=0,0,Z17) -> 0 | R167: =IF(R165=0,0,Z18) -> 0 | S167: =IF(S165=0,0,Z19) -> 0 | T167: =IF(T165=0,0,Z20) -> 0 | U167: =IF(U165=0,0,Z21) -> 0
A168: итог время | B168: =SUM(B165:U166) -> 00:16:14 | I168: итог баллы | K168: =SUM(B167:U167) -> 13.20762079
A170: № | B170: ='Список команд'!B98 -> 25 | C170: команда | D170: ='Список команд'!D98:G98 -> МЭИ-1
A171: трасса | B171: 1 | C171: 2 | D171: 3 | E171: 4 | F171: 5 | G171: 6 | H171: 7 | I171: 8 | J171: 9 | K171: 10 | L171: 11 | M171: 12 | N171: 13 | O171: 14 | P171: 15 | Q171: 16 | R171: 17 | S171: 18 | T171: 19 | U171: 20
A172: время | F172: 00:05:52 | I172: 00:02:29 | K172: 00:02:24 | M172: 00:03:18 | P172: 00:02:56
A173: штраф
A174: баллы | B174: =IF(B172=0,0,Z2) -> 0 | C174: =IF(C172=0,0,Z3) -> 0 | D174: =IF(D172=0,0,Z4) -> 0 | E174: =IF(E172=0,0,Z5) -> 0 | F174: =IF(F172=0,0,Z6) -> 1.666666667 | G174: =IF(G172=0,0,Z7) -> 0 | H174: =IF(H172=0,0,Z8) -> 0 | I174: =IF(I172=0,0,Z9) -> 3.333333333 | J174: =IF(J172=0,0,Z10) -> 0 | K174: =IF(K172=0,0,Z11) -> 4.347826087 | L174: =IF(L172=0,0,Z12) -> 0 | M174: =IF(M172=0,0,Z13) -> 5.454545455 | N174: =IF(N172=0,0,Z14) -> 0 | O174: =IF(O172=0,0,Z15) -> 0 | P174: =IF(P172=0,0,Z16) -> 1.764705882 | Q174: =IF(Q172=0,0,Z17) -> 0 | R174: =IF(R172=0,0,Z18) -> 0 | S174: =IF(S172=0,0,Z19) -> 0 | T174: =IF(T172=0,0,Z20) -> 0 | U174: =IF(U172=0,0,Z21) -> 0
A175: итог время | B175: =SUM(B172:U173) -> 00:16:59 | I175: итог баллы | K175: =SUM(B174:U174) -> 16.56707742
A177: № | B177: ='Список команд'!B102 -> 26 | C177: команда | D177: ='Список команд'!D102:G102 -> а/к МГУ
A178: трасса | B178: 1 | C178: 2 | D178: 3 | E178: 4 | F178: 5 | G178: 6 | H178: 7 | I178: 8 | J178: 9 | K178: 10 | L178: 11 | M178: 12 | N178: 13 | O178: 14 | P178: 15 | Q178: 16 | R178: 17 | S178: 18 | T178: 19 | U178: 20
A179: время | H179: 00:11:17 | I179: 00:03:52 | J179: 00:11:48 | K179: 00:02:19 | L179: 00:12:52 | M179: 00:09:51 | N179: 00:04:15 | O179: 00:04:51 | P179: 00:02:24
A180: штраф
A181: баллы | B181: =IF(B179=0,0,Z2) -> 0 | C181: =IF(C179=0,0,Z3) -> 0 | D181: =IF(D179=0,0,Z4) -> 0 | E181: =IF(E179=0,0,Z5) -> 0 | F181: =IF(F179=0,0,Z6) -> 0 | G181: =IF(G179=0,0,Z7) -> 0 | H181: =IF(H179=0,0,Z8) -> 8.333333333 | I181: =IF(I179=0,0,Z9) -> 3.333333333 | J181: =IF(J179=0,0,Z10) -> 20 | K181: =IF(K179=0,0,Z11) -> 4.347826087 | L181: =IF(L179=0,0,Z12) -> 14.28571429 | M181: =IF(M179=0,0,Z13) -> 5.454545455 | N181: =IF(N179=0,0,Z14) -> 2.727272727 | O181: =IF(O179=0,0,Z15) -> 12 | P181: =IF(P179=0,0,Z16) -> 1.764705882 | Q181: =IF(Q179=0,0,Z17) -> 0 | R181: =IF(R179=0,0,Z18) -> 0 | S181: =IF(S179=0,0,Z19) -> 0 | T181: =IF(T179=0,0,Z20) -> 0 | U181: =IF(U179=0,0,Z21) -> 0
A182: итог время | B182: =SUM(B179:U180) -> 01:03:29 | I182: итог баллы | K182: =SUM(B181:U181) -> 72.2467311
A184: № | B184: ='Список команд'!B106 -> 27 | C184: команда | D184: ='Список команд'!D106:G106 -> МГУ-СПЕЛЕО
A185: трасса | B185: 1 | C185: 2 | D185: 3 | E185: 4 | F185: 5 | G185: 6 | H185: 7 | I185: 8 | J185: 9 | K185: 10 | L185: 11 | M185: 12 | N185: 13 | O185: 14 | P185: 15 | Q185: 16 | R185: 17 | S185: 18 | T185: 19 | U185: 20
A186: время
A187: штраф
A188: баллы | B188: =IF(B186=0,0,Z2) -> 0 | C188: =IF(C186=0,0,Z3) -> 0 | D188: =IF(D186=0,0,Z4) -> 0 | E188: =IF(E186=0,0,Z5) -> 0 | F188: =IF(F186=0,0,Z6) -> 0 | G188: =IF(G186=0,0,Z7) -> 0 | H188: =IF(H186=0,0,Z8) -> 0 | I188: =IF(I186=0,0,Z9) -> 0 | J188: =IF(J186=0,0,Z10) -> 0 | K188: =IF(K186=0,0,Z11) -> 0 | L188: =IF(L186=0,0,Z12) -> 0 | M188: =IF(M186=0,0,Z13) -> 0 | N188: =IF(N186=0,0,Z14) -> 0 | O188: =IF(O186=0,0,Z15) -> 0 | P188: =IF(P186=0,0,Z16) -> 0 | Q188: =IF(Q186=0,0,Z17) -> 0 | R188: =IF(R186=0,0,Z18) -> 0 | S188: =IF(S186=0,0,Z19) -> 0 | T188: =IF(T186=0,0,Z20) -> 0 | U188: =IF(U186=0,0,Z21) -> 0
A189: итог время | B189: =SUM(B186:U187) -> 00:00:00 | I189: итог баллы | K189: =SUM(B188:U188) -> 0
A191: № | B191: ='Список команд'!B110 -> 28 | C191: команда | D191: ='Список команд'!D110:G110 -> Воронеж-6
A192: трасса | B192: 1 | C192: 2 | D192: 3 | E192: 4 | F192: 5 | G192: 6 | H192: 7 | I192: 8 | J192: 9 | K192: 10 | L192: 11 | M192: 12 | N192: 13 | O192: 14 | P192: 15 | Q192: 16 | R192: 17 | S192: 18 | T192: 19 | U192: 20
A193: время | B193: 00:02:40 | C193: 00:03:32 | D193: 00:04:24 | E193: 00:01:38 | G193: 00:08:55 | N193: 00:04:27
A194: штраф
A195: баллы | B195: =IF(B193=0,0,Z2) -> 0.6976744186 | C195: =IF(C193=0,0,Z3) -> 1.034482759 | D195: =IF(D193=0,0,Z4) -> 0.7692307692 | E195: =IF(E193=0,0,Z5) -> 0.7692307692 | F195: =IF(F193=0,0,Z6) -> 0 | G195: =IF(G193=0,0,Z7) -> 1.363636364 | H195: =IF(H193=0,0,Z8) -> 0 | I195: =IF(I193=0,0,Z9) -> 0 | J195: =IF(J193=0,0,Z10) -> 0 | K195: =IF(K193=0,0,Z11) -> 0 | L195: =IF(L193=0,0,Z12) -> 0 | M195: =IF(M193=0,0,Z13) -> 0 | N195: =IF(N193=0,0,Z14) -> 2.727272727 | O195: =IF(O193=0,0,Z15) -> 0 | P195: =IF(P193=0,0,Z16) -> 0 | Q195: =IF(Q193=0,0,Z17) -> 0 | R195: =IF(R193=0,0,Z18) -> 0 | S195: =IF(S193=0,0,Z19) -> 0 | T195: =IF(T193=0,0,Z20) -> 0 | U195: =IF(U193=0,0,Z21) -> 0
A196: итог время | B196: =SUM(B193:U194) -> 00:25:36 | I196: итог баллы | K196: =SUM(B195:U195) -> 7.361527807
A198: № | B198: ='Список команд'!B114 -> 29 | C198: команда | D198: ='Список команд'!D114:G114 -> КАиС МЭИ
A199: трасса | B199: 1 | C199: 2 | D199: 3 | E199: 4 | F199: 5 | G199: 6 | H199: 7 | I199: 8 | J199: 9 | K199: 10 | L199: 11 | M199: 12 | N199: 13 | O199: 14 | P199: 15 | Q199: 16 | R199: 17 | S199: 18 | T199: 19 | U199: 20
A200: время
A201: штраф
A202: баллы | B202: =IF(B200=0,0,Z2) -> 0 | C202: =IF(C200=0,0,Z3) -> 0 | D202: =IF(D200=0,0,Z4) -> 0 | E202: =IF(E200=0,0,Z5) -> 0 | F202: =IF(F200=0,0,Z6) -> 0 | G202: =IF(G200=0,0,Z7) -> 0 | H202: =IF(H200=0,0,Z8) -> 0 | I202: =IF(I200=0,0,Z9) -> 0 | J202: =IF(J200=0,0,Z10) -> 0 | K202: =IF(K200=0,0,Z11) -> 0 | L202: =IF(L200=0,0,Z12) -> 0 | M202: =IF(M200=0,0,Z13) -> 0 | N202: =IF(N200=0,0,Z14) -> 0 | O202: =IF(O200=0,0,Z15) -> 0 | P202: =IF(P200=0,0,Z16) -> 0 | Q202: =IF(Q200=0,0,Z17) -> 0 | R202: =IF(R200=0,0,Z18) -> 0 | S202: =IF(S200=0,0,Z19) -> 0 | T202: =IF(T200=0,0,Z20) -> 0 | U202: =IF(U200=0,0,Z21) -> 0
A203: итог время | B203: =SUM(B200:U201) -> 00:00:00 | I203: итог баллы | K203: =SUM(B202:U202) -> 0
A205: № | B205: ='Список команд'!B118 -> 30 | C205: команда | D205: ='Список команд'!D118:G118 -> Академия Приключений
A206: трасса | B206: 1 | C206: 2 | D206: 3 | E206: 4 | F206: 5 | G206: 6 | H206: 7 | I206: 8 | J206: 9 | K206: 10 | L206: 11 | M206: 12 | N206: 13 | O206: 14 | P206: 15 | Q206: 16 | R206: 17 | S206: 18 | T206: 19 | U206: 20
A207: время | B207: 00:01:16 | C207: 00:04:59 | D207: 00:03:18 | E207: 00:00:35 | G207: 00:03:25 | K207: 00:02:28 | P207: 00:04:00
A208: штраф
A209: баллы | B209: =IF(B207=0,0,Z2) -> 0.6976744186 | C209: =IF(C207=0,0,Z3) -> 1.034482759 | D209: =IF(D207=0,0,Z4) -> 0.7692307692 | E209: =IF(E207=0,0,Z5) -> 0.7692307692 | F209: =IF(F207=0,0,Z6) -> 0 | G209: =IF(G207=0,0,Z7) -> 1.363636364 | H209: =IF(H207=0,0,Z8) -> 0 | I209: =IF(I207=0,0,Z9) -> 0 | J209: =IF(J207=0,0,Z10) -> 0 | K209: =IF(K207=0,0,Z11) -> 4.347826087 | L209: =IF(L207=0,0,Z12) -> 0 | M209: =IF(M207=0,0,Z13) -> 0 | N209: =IF(N207=0,0,Z14) -> 0 | O209: =IF(O207=0,0,Z15) -> 0 | P209: =IF(P207=0,0,Z16) -> 1.764705882 | Q209: =IF(Q207=0,0,Z17) -> 0 | R209: =IF(R207=0,0,Z18) -> 0 | S209: =IF(S207=0,0,Z19) -> 0 | T209: =IF(T207=0,0,Z20) -> 0 | U209: =IF(U207=0,0,Z21) -> 0
A210: итог время | B210: =SUM(B207:U208) -> 00:20:01 | I210: итог баллы | K210: =SUM(B209:U209) -> 10.74678705
A212: № | B212: ='Список команд'!B122 -> 31 | C212: команда | D212: ='Список команд'!D122:G122 -> МакГУ
A213: трасса | B213: 1 | C213: 2 | D213: 3 | E213: 4 | F213: 5 | G213: 6 | H213: 7 | I213: 8 | J213: 9 | K213: 10 | L213: 11 | M213: 12 | N213: 13 | O213: 14 | P213: 15 | Q213: 16 | R213: 17 | S213: 18 | T213: 19 | U213: 20
A214: время | B214: 00:02:16 | C214: 00:02:58 | D214: 00:03:55 | E214: 00:02:25 | F214: 00:07:25 | G214: 00:06:33 | I214: 00:02:40 | K214: 00:02:57 | N214: 00:04:39 | P214: 00:05:13
A215: штраф
A216: баллы | B216: =IF(B214=0,0,Z2) -> 0.6976744186 | C216: =IF(C214=0,0,Z3) -> 1.034482759 | D216: =IF(D214=0,0,Z4) -> 0.7692307692 | E216: =IF(E214=0,0,Z5) -> 0.7692307692 | F216: =IF(F214=0,0,Z6) -> 1.666666667 | G216: =IF(G214=0,0,Z7) -> 1.363636364 | H216: =IF(H214=0,0,Z8) -> 0 | I216: =IF(I214=0,0,Z9) -> 3.333333333 | J216: =IF(J214=0,0,Z10) -> 0 | K216: =IF(K214=0,0,Z11) -> 4.347826087 | L216: =IF(L214=0,0,Z12) -> 0 | M216: =IF(M214=0,0,Z13) -> 0 | N216: =IF(N214=0,0,Z14) -> 2.727272727 | O216: =IF(O214=0,0,Z15) -> 0 | P216: =IF(P214=0,0,Z16) -> 1.764705882 | Q216: =IF(Q214=0,0,Z17) -> 0 | R216: =IF(R214=0,0,Z18) -> 0 | S216: =IF(S214=0,0,Z19) -> 0 | T216: =IF(T214=0,0,Z20) -> 0 | U216: =IF(U214=0,0,Z21) -> 0
A217: итог время | B217: =SUM(B214:U215) -> 00:41:01 | I217: итог баллы | K217: =SUM(B216:U216) -> 18.47405978
A219: № | B219: ='Список команд'!B126 -> 32 | C219: команда | D219: ='Список команд'!D126:G126 -> Black Ice
A220: трасса | B220: 1 | C220: 2 | D220: 3 | E220: 4 | F220: 5 | G220: 6 | H220: 7 | I220: 8 | J220: 9 | K220: 10 | L220: 11 | M220: 12 | N220: 13 | O220: 14 | P220: 15 | Q220: 16 | R220: 17 | S220: 18 | T220: 19 | U220: 20
A221: время | B221: 00:02:31 | C221: 00:02:09 | D221: 00:03:12 | E221: 00:02:44 | F221: 00:07:25 | G221: 00:04:46 | P221: 00:04:33
A222: штраф
A223: баллы | B223: =IF(B221=0,0,Z2) -> 0.6976744186 | C223: =IF(C221=0,0,Z3) -> 1.034482759 | D223: =IF(D221=0,0,Z4) -> 0.7692307692 | E223: =IF(E221=0,0,Z5) -> 0.7692307692 | F223: =IF(F221=0,0,Z6) -> 1.666666667 | G223: =IF(G221=0,0,Z7) -> 1.363636364 | H223: =IF(H221=0,0,Z8) -> 0 | I223: =IF(I221=0,0,Z9) -> 0 | J223: =IF(J221=0,0,Z10) -> 0 | K223: =IF(K221=0,0,Z11) -> 0 | L223: =IF(L221=0,0,Z12) -> 0 | M223: =IF(M221=0,0,Z13) -> 0 | N223: =IF(N221=0,0,Z14) -> 0 | O223: =IF(O221=0,0,Z15) -> 0 | P223: =IF(P221=0,0,Z16) -> 1.764705882 | Q223: =IF(Q221=0,0,Z17) -> 0 | R223: =IF(R221=0,0,Z18) -> 0 | S223: =IF(S221=0,0,Z19) -> 0 | T223: =IF(T221=0,0,Z20) -> 0 | U223: =IF(U221=0,0,Z21) -> 0
A224: итог время | B224: =SUM(B221:U222) -> 00:27:20 | I224: итог баллы | K224: =SUM(B223:U223) -> 8.065627628
A226: № | B226: ='Список команд'!B130 -> 33 | C226: команда | D226: ='Список команд'!D130:G130 -> Енотовидные коты
A227: трасса | B227: 1 | C227: 2 | D227: 3 | E227: 4 | F227: 5 | G227: 6 | H227: 7 | I227: 8 | J227: 9 | K227: 10 | L227: 11 | M227: 12 | N227: 13 | O227: 14 | P227: 15 | Q227: 16 | R227: 17 | S227: 18 | T227: 19 | U227: 20
A228: время | B228: 00:03:45 | C228: 00:03:02 | D228: 00:03:21 | E228: 00:02:25 | G228: 00:04:02 | H228: 00:15:30 | I228: 00:02:46 | K228: 00:04:05 | M228: 00:12:00 | N228: 00:03:31 | P228: 00:03:56
A229: штраф
A230: баллы | B230: =IF(B228=0,0,Z2) -> 0.6976744186 | C230: =IF(C228=0,0,Z3) -> 1.034482759 | D230: =IF(D228=0,0,Z4) -> 0.7692307692 | E230: =IF(E228=0,0,Z5) -> 0.7692307692 | F230: =IF(F228=0,0,Z6) -> 0 | G230: =IF(G228=0,0,Z7) -> 1.363636364 | H230: =IF(H228=0,0,Z8) -> 8.333333333 | I230: =IF(I228=0,0,Z9) -> 3.333333333 | J230: =IF(J228=0,0,Z10) -> 0 | K230: =IF(K228=0,0,Z11) -> 4.347826087 | L230: =IF(L228=0,0,Z12) -> 0 | M230: =IF(M228=0,0,Z13) -> 5.454545455 | N230: =IF(N228=0,0,Z14) -> 2.727272727 | O230: =IF(O228=0,0,Z15) -> 0 | P230: =IF(P228=0,0,Z16) -> 1.764705882 | Q230: =IF(Q228=0,0,Z17) -> 0 | R230: =IF(R228=0,0,Z18) -> 0 | S230: =IF(S228=0,0,Z19) -> 0 | T230: =IF(T228=0,0,Z20) -> 0 | U230: =IF(U228=0,0,Z21) -> 0
... 403 more rows

Sheet квалификация (итоги)
A1: номер | B1: команда | C1: время | D1: баллы | E1: место
A2: =Квалификация!B233 -> 34 | B2: =Квалификация!D233 -> verticalwork | C2: =Квалификация!B238 -> 00:39:47 | D2: =Квалификация!K238 -> 75.51734982 | E2: 1
A3: =Квалификация!B177 -> 26 | B3: =Квалификация!D177 -> а/к МГУ | C3: =Квалификация!B182 -> 01:03:29 | D3: =Квалификация!K182 -> 72.2467311 | E3: 2
A4: =Квалификация!B72 -> 11 | B4: =Квалификация!D72 -> Королев | C4: =Квалификация!B77 -> 00:50:47 | D4: =Квалификация!K77 -> 62.30020704 | E4: 3
A5: =Квалификация!B135 -> 20 | B5: =Квалификация!D135 -> Стасон и я | C5: =Квалификация!B140 -> 00:37:24 | D5: =Квалификация!K140 -> 58.06280436 | E5: 4
A6: =Квалификация!B30 -> 5 | B6: =Квалификация!D30 -> Korolev Climbing School | C6: =Квалификация!B35 -> 00:39:37 | D6: =Квалификация!K35 -> 36.71216717 | E6: 5
A7: =Квалификация!B324 -> 47 | B7: =Квалификация!D324 -> Безпятиполпятого | C7: =Квалификация!B329 -> 00:37:22 | D7: =Квалификация!K329 -> 35.18401649 | E7: 6
A8: =Квалификация!B107 -> 16 | B8: =Квалификация!D107 -> МЭИ | C8: =Квалификация!B112 -> 00:33:11 | D8: =Квалификация!K112 -> 34.14953373 | E8: 7
A9: =Квалификация!B37 -> 6 | B9: =Квалификация!D37 -> JustForFun | C9: =Квалификация!B42 -> 00:35:29 | D9: =Квалификация!K42 -> 31.76711223 | E9: 8
A10: =Квалификация!B121 -> 18 | B10: =Квалификация!D121 -> Питер1 | C10: =Квалификация!B126 -> 00:37:47 | D10: =Квалификация!K126 -> 31.23444881 | E10: 9
A11: =Квалификация!B2 -> 1 | B11: =Квалификация!D2 -> Ураганы | C11: =Квалификация!B7 -> 00:46:11 | D11: =Квалификация!K7 -> 30.5952719 | E11: 10
A12: =Квалификация!B226 -> 33 | B12: =Квалификация!D226 -> Енотовидные коты | C12: =Квалификация!B231 -> 00:58:23 | D12: =Квалификация!K231 -> 30.5952719 | E12: 11
A13: =Квалификация!B282 -> 41 | B13: =Квалификация!D282 -> промальпсоюз | C13: =Квалификация!B287 -> 00:31:10 | D13: =Квалификация!K287 -> 30.47687305 | E13: 12
A14: =Квалификация!B93 -> 14 | B14: =Квалификация!D93 -> АК МАИ | C14: =Квалификация!B98 -> 00:36:56 | D14: =Квалификация!K98 -> 22.74260732 | E14: 13
A15: =Квалификация!B156 -> 23 | B15: =Квалификация!D156 -> Воронеж | C15: =Квалификация!B161 -> 00:41:11 | D15: =Квалификация!K161 -> 18.56199401 | E15: 14
A16: =Квалификация!B212 -> 31 | B16: =Квалификация!D212 -> МакГУ | C16: =Квалификация!B217 -> 00:41:01 | D16: =Квалификация!K217 -> 18.47405978 | E16: 15
A17: =Квалификация!B170 -> 25 | B17: =Квалификация!D170 -> МЭИ-1 | C17: =Квалификация!B175 -> 00:16:59 | D17: =Квалификация!K175 -> 16.56707742 | E17: 16
A18: =Квалификация!B331 -> 48 | B18: =Квалификация!D331 -> Юрцы | C18: =Квалификация!B336 -> 00:28:57 | D18: =Квалификация!K336 -> 14.90041076 | E18: 17
A19: =Квалификация!B44 -> 7 | B19: =Квалификация!D44 -> ГК МГСУ | C19: =Квалификация!B49 -> 00:19:47 | D19: =Квалификация!K49 -> 14.38315068 | E19: 18
A20: =Квалификация!B100 -> 15 | B20: =Квалификация!D100 -> вега | C20: =Квалификация!B105 -> 00:33:22 | D20: =Квалификация!K105 -> 14.12623369 | E20: 19
A21: =Квалификация!B296 -> 43 | B21: =Квалификация!D296 -> Руки-Крюки | C21: =Квалификация!B301 -> 00:27:48 | D21: =Квалификация!K301 -> 13.98208117 | E21: 20
A22: =Квалификация!B317 -> 46 | B22: =Квалификация!D317 -> Абрис | C22: =Квалификация!B322 -> 00:21:36 | D22: =Квалификация!K322 -> 13.67905086 | E22: 21
A23: =Квалификация!B163 -> 24 | B23: =Квалификация!D163 -> Мэи | C23: =Квалификация!B168 -> 00:16:14 | D23: =Квалификация!K168 -> 13.20762079 | E23: 22
A24: =Квалификация!B9 -> 2 | B24: =Квалификация!D9 -> Энергия | C24: =Квалификация!B14 -> 00:42:40 | D24: =Квалификация!K14 -> 12.48569032 | E24: 23
A25: =Квалификация!B23 -> 4 | B25: =Квалификация!D23 -> Сибирский юмор | C25: =Квалификация!B28 -> 00:26:41 | D25: =Квалификация!K28 -> 12.45956702 | E25: 24
A26: =Квалификация!B114 -> 17 | B26: =Квалификация!D114 -> ЙЫЛДЫЗ | C26: =Квалификация!B119 -> 00:25:16 | D26: =Квалификация!K119 -> 12.36152781 | E26: 25
A27: =Квалификация!B142 -> 21 | B27: =Квалификация!D142 -> Shlang-Team-1 | C27: =Квалификация!B147 -> 00:14:04 | D27: =Квалификация!K147 -> 12.17313803 | E27: 26
A28: =Квалификация!B373 -> 54 | B28: =Квалификация!D373 -> Босоногие | C28: =Квалификация!B378 -> 00:38:26 | D28: =Квалификация!K378 -> 11.85350642 | E28: 27
A29: =Квалификация!B65 -> 10 | B29: =Квалификация!D65 -> ГК МГСУ | C29: =Квалификация!B70 -> 00:13:42 | D29: =Квалификация!K70 -> 11.68200126 | E29: 28
A30: =Квалификация!B247 -> 36 | B30: =Квалификация!D247 -> КАиС МЭИ | C30: =Квалификация!B252 -> 00:27:21 | D30: =Квалификация!K252 -> 11.39896096 | E30: 29
A31: =Квалификация!B268 -> 39 | B31: =Квалификация!D268 -> Patagonia | C31: =Квалификация!B273 -> 00:31:55 | D31: =Квалификация!K273 -> 11.39896096 | E31: 31
A32: =Квалификация!B338 -> 49 | B32: =Квалификация!D338 -> only armor steel :) | C32: =Квалификация!B343 -> 00:29:09 | D32: =Квалификация!K343 -> 11.39896096 | E32: 30
A33: =Квалификация!B366 -> 53 | B33: =Квалификация!D366 -> МОЛЬ | C33: =Квалификация!B371 -> 00:35:39 | D33: =Квалификация!K371 -> 10.79290036 | E33: 32
A34: =Квалификация!B205 -> 30 | B34: =Квалификация!D205 -> Академия Приключений | C34: =Квалификация!B210 -> 00:20:01 | D34: =Квалификация!K210 -> 10.74678705 | E34: 33
A35: =Квалификация!B359 -> 52 | B35: =Квалификация!D359 -> Вася&Co | C35: =Квалификация!B364 -> 00:27:27 | D35: =Квалификация!K364 -> 10.48987005 | E35: 34
A36: =Квалификация!B303 -> 44 | B36: =Квалификация!D303 -> ЗМЭИ | C36: =Квалификация!B308 -> 00:19:00 | D36: =Квалификация!K308 -> 10.0614479 | E36: 35
A37: =Квалификация!B128 -> 19 | B37: =Квалификация!D128 -> Позитрон/АК МАИ | C37: =Квалификация!B133 -> 00:31:34 | D37: =Квалификация!K133 -> 10.0353246 | E37: 36
A38: =Квалификация!B387 -> 56 | B38: =Квалификация!D387 -> Неловкое движение | C38: =Квалификация!B392 -> 00:30:20 | D38: =Квалификация!K392 -> 9.028194473 | E38: 37
A39: =Квалификация!B345 -> 50 | B39: =Квалификация!D345 -> Титановый Штырь | C39: =Квалификация!B350 -> 00:19:21 | D39: =Квалификация!K350 -> 8.219956059 | E39: 38
A40: =Квалификация!B219 -> 32 | B40: =Квалификация!D219 -> Black Ice | C40: =Квалификация!B224 -> 00:27:20 | D40: =Квалификация!K224 -> 8.065627628 | E40: 39
A41: =Квалификация!B240 -> 35 | B41: =Квалификация!D240 -> Демо ошибка | C41: =Квалификация!B245 -> 00:31:30 | D41: =Квалификация!K245 -> 8.065627628 | E41: 40
A42: =Квалификация!B191 -> 28 | B42: =Квалификация!D191 -> Воронеж-6 | C42: =Квалификация!B196 -> 00:25:36 | D42: =Квалификация!K196 -> 7.361527807 | E42: 41
A43: =Квалификация!B254 -> 37 | B43: =Квалификация!D254 -> БаранМартын | C43: =Квалификация!B259 -> 00:13:30 | D43: =Квалификация!K259 -> 5.364478203 | E43: 42
A44: =Квалификация!B79 -> 12 | B44: =Квалификация!D79 -> Хухтилампи | C44: =Квалификация!B84 -> 00:14:46 | D44: =Квалификация!K84 -> 4.000841839 | E44: 43
A45: =Квалификация!B401 -> 58 | B45: =Квалификация!D401 -> Гахария - сонная тетеря | C45: =Квалификация!B406 -> 00:19:39 | D45: =Квалификация!K406 -> 3.902802624 | E45: 44
A46: =Квалификация!B380 -> 55 | B46: =Квалификация!D380 -> Без обид ;-) | C46: =Квалификация!B385 -> 00:13:24 | D46: =Квалификация!K385 -> 3.599772321 | E46: 45
A47: =Квалификация!B275 -> 40 | B47: =Квалификация!D275 -> МГСУ-3 | C47: =Квалификация!B280 -> 00:13:57 | D47: =Квалификация!K280 -> 3.270618716 | E47: 47
A48: =Квалификация!B289 -> 42 | B48: =Квалификация!D289 -> БЕДА | C48: =Квалификация!B294 -> 00:17:37 | D48: =Квалификация!K294 -> 3.270618716 | E48: 48
A49: =Квалификация!B310 -> 45 | B49: =Квалификация!D310 -> а/к МГТУ | C49: =Квалификация!B315 -> 00:12:48 | D49: =Квалификация!K315 -> 3.270618716 | E49: 46
A50: =Квалификация!B394 -> 57 | B50: =Квалификация!D394 -> По пути | C50: =Квалификация!B399 -> 00:09:22 | D50: =Квалификация!K399 -> 2.236135957 | E50: 49
A51: =Квалификация!B261 -> 38 | B51: =Квалификация!D261 -> МГУ-спелео | C51: =Квалификация!B266 -> 00:06:19 | D51: =Квалификация!K266 -> 1.538461538 | E51: 50
A52: =Квалификация!B16 -> 3 | B52: =Квалификация!D16 -> цр псо | C52: =Квалификация!B21 -> 00:00:00 | D52: =Квалификация!K21 -> 0
A53: =Квалификация!B51 -> 8 | B53: =Квалификация!D51 -> M&M's | C53: =Квалификация!B56 -> 00:00:00 | D53: =Квалификация!K56 -> 0
A54: =Квалификация!B58 -> 9 | B54: =Квалификация!D58 -> Экс-МГСУ | C54: =Квалификация!B63 -> 00:00:00 | D54: =Квалификация!K63 -> 0
A55: =Квалификация!B86 -> 13 | B55: =Квалификация!D86 -> Странник | C55: =Квалификация!B91 -> 00:00:00 | D55: =Квалификация!K91 -> 0
A56: =Квалификация!B149 -> 22 | B56: =Квалификация!D149 -> Штурм | C56: =Квалификация!B154 -> 00:00:00 | D56: =Квалификация!K154 -> 0
A57: =Квалификация!B184 -> 27 | B57: =Квалификация!D184 -> МГУ-СПЕЛЕО | C57: =Квалификация!B189 -> 00:00:00 | D57: =Квалификация!K189 -> 0
A58: =Квалификация!B198 -> 29 | B58: =Квалификация!D198 -> КАиС МЭИ | C58: =Квалификация!B203 -> 00:00:00 | D58: =Квалификация!K203 -> 0
A59: =Квалификация!B352 -> 51 | B59: =Квалификация!D352 -> Base&Climb | C59: =Квалификация!B357 -> 00:00:00 | D59: =Квалификация!K357 -> 0
A60: =Квалификация!B408 -> 59 | B60: =Квалификация!D408 -> 24 | C60: =Квалификация!B413 -> 00:00:00 | D60: =Квалификация!K413 -> 0
A61: =Квалификация!B415 -> 60 | B61: =Квалификация!D415 -> 25 | C61: =Квалификация!B420 -> 00:00:00 | D61: =Квалификация!K420 -> 0
A62: =Квалификация!B422 -> 61 | B62: =Квалификация!D422 -> 26 | C62: =Квалификация!B427 -> 00:00:00 | D62: =Квалификация!K427 -> 0
A63: =Квалификация!B429 -> 62 | B63: =Квалификация!D429 -> 27 | C63: =Квалификация!B434 -> 00:00:00 | D63: =Квалификация!K434 -> 0
A64: =Квалификация!B436 -> 63 | B64: =Квалификация!D436 -> 28 | C64: =Квалификация!B441 -> 00:00:00 | D64: =Квалификация!K441 -> 0
A65: =Квалификация!B443 -> 64 | B65: =Квалификация!D443 -> 29 | C65: =Квалификация!B448 -> 00:00:00 | D65: =Квалификация!K448 -> 0
A66: =Квалификация!B450 -> 65 | B66: =Квалификация!D450 -> 30 | C66: =Квалификация!B455 -> 00:00:00 | D66: =Квалификация!K455 -> 0
A67: =Квалификация!B457 -> 66 | B67: =Квалификация!D457 -> 31 | C67: =Квалификация!B462 -> 00:00:00 | D67: =Квалификация!K462 -> 0
A68: =Квалификация!B464 -> 67 | B68: =Квалификация!D464 -> 32 | C68: =Квалификация!B469 -> 00:00:00 | D68: =Квалификация!K469 -> 0
A69: =Квалификация!B471 -> 68 | B69: =Квалификация!D471 -> 33 | C69: =Квалификация!B476 -> 00:00:00 | D69: =Квалификация!K476 -> 0
A70: =Квалификация!B478 -> 69 | B70: =Квалификация!D478 -> 34 | C70: =Квалификация!B483 -> 00:00:00 | D70: =Квалификация!K483 -> 0
A71: =Квалификация!B485 -> 70 | B71: =Квалификация!D485 -> 35 | C71: =Квалификация!B490 -> 00:00:00 | D71: =Квалификация!K490 -> 0
A72: =Квалификация!B492 -> 71 | B72: =Квалификация!D492 -> 36 | C72: =Квалификация!B497 -> 00:00:00 | D72: =Квалификация!K497 -> 0
A73: =Квалификация!B499 -> 72 | B73: =Квалификация!D499 -> 37 | C73: =Квалификация!B504 -> 00:00:00 | D73: =Квалификация!K504 -> 0
A74: =Квалификация!B506 -> 73 | B74: =Квалификация!D506 -> 38 | C74: =Квалификация!B511 -> 00:00:00 | D74: =Квалификация!K511 -> 0
A75: =Квалификация!B513 -> 74 | B75: =Квалификация!D513 -> 39 | C75: =Квалификация!B518 -> 00:00:00 | D75: =Квалификация!K518 -> 0
A76: =Квалификация!B520 -> 75 | B76: =Квалификация!D520 -> 40 | C76: =Квалификация!B525 -> 00:00:00 | D76: =Квалификация!K525 -> 0
A77: =Квалификация!B527 -> 76 | B77: =Квалификация!D527 -> 41 | C77: =Квалификация!B532 -> 00:00:00 | D77: =Квалификация!K532 -> 0
A78: =Квалификация!B534 -> 77 | B78: =Квалификация!D534 -> 42 | C78: =Квалификация!B539 -> 00:00:00 | D78: =Квалификация!K539 -> 0
A79: =Квалификация!B541 -> 78 | B79: =Квалификация!D541 -> 43 | C79: =Квалификация!B546 -> 00:00:00 | D79: =Квалификация!K546 -> 0
A80: =Квалификация!B548 -> 79 | B80: =Квалификация!D548 -> 44 | C80: =Квалификация!B553 -> 00:00:00 | D80: =Квалификация!K553 -> 0
A81: =Квалификация!B555 -> 80 | B81: =Квалификация!D555 -> 45 | C81: =Квалификация!B560 -> 00:00:00 | D81: =Квалификация!K560 -> 0
A82: =Квалификация!B562 -> 81 | B82: =Квалификация!D562 -> 46 | C82: =Квалификация!B567 -> 00:00:00 | D82: =Квалификация!K567 -> 0
A83: =Квалификация!B569 -> 82 | B83: =Квалификация!D569 -> 47 | C83: =Квалификация!B574 -> 00:00:00 | D83: =Квалификация!K574 -> 0
A84: =Квалификация!B576 -> 83 | B84: =Квалификация!D576 -> 48 | C84: =Квалификация!B581 -> 00:00:00 | D84: =Квалификация!K581 -> 0
A85: =Квалификация!B583 -> 84 | B85: =Квалификация!D583 -> 49 | C85: =Квалификация!B588 -> 00:00:00 | D85: =Квалификация!K588 -> 0
A86: =Квалификация!B590 -> 85 | B86: =Квалификация!D590 -> 50 | C86: =Квалификация!B595 -> 00:00:00 | D86: =Квалификация!K595 -> 0
A87: =Квалификация!B597 -> 86 | B87: =Квалификация!D597 -> 51 | C87: =Квалификация!B602 -> 00:00:00 | D87: =Квалификация!K602 -> 0
A88: =Квалификация!B604 -> 87 | B88: =Квалификация!D604 -> 52 | C88: =Квалификация!B609 -> 00:00:00 | D88: =Квалификация!K609 -> 0
A89: =Квалификация!B611 -> 88 | B89: =Квалификация!D611 -> 53 | C89: =Квалификация!B616 -> 00:00:00 | D89: =Квалификация!K616 -> 0
A90: =Квалификация!B618 -> 89 | B90: =Квалификация!D618 -> 54 | C90: =Квалификация!B623 -> 00:00:00 | D90: =Квалификация!K623 -> 0
A91: =Квалификация!B625 -> 90 | B91: =Квалификация!D625 -> 55 | C91: =Квалификация!B630 -> 00:00:00 | D91: =Квалификация!K630 -> 0
A92: =Квалификация!B632 -> 91 | B92: =Квалификация!D632 -> 56 | C92: =Квалификация!B637 -> 00:00:00 | D92: =Квалификация!K637 -> 0
A93: =Квалификация!B639 -> 92 | B93: =Квалификация!D639 -> 57 | C93: =Квалификация!B644 -> 00:00:00 | D93: =Квалификация!K644 -> 0
A94: =Квалификация!B646 -> 93 | B94: =Квалификация!D646 -> 58 | C94: =Квалификация!B651 -> 00:00:00 | D94: =Квалификация!K651 -> 0
A95: =Квалификация!B653 -> 94 | B95: =Квалификация!D653 -> 59 | C95: =Квалификация!B658 -> 00:00:00 | D95: =Квалификация!K658 -> 0
A96: =Квалификация!B660 -> 95 | B96: =Квалификация!D660 -> 60 | C96: =Квалификация!B665 -> 00:00:00 | D96: =Квалификация!K665 -> 0
A97: =Квалификация!B667 -> 96 | B97: =Квалификация!D667 -> 61 | C97: =Квалификация!B672 -> 00:00:00 | D97: =Квалификация!K672 -> 0
A98: =Квалификация!B674 -> 97 | B98: =Квалификация!D674 -> 62 | C98: =Квалификация!B679 -> 00:00:00 | D98: =Квалификация!K679 -> 0
A99: =Квалификация!B681 -> 98 | B99: =Квалификация!D681 -> 63 | C99: =Квалификация!B686 -> 00:00:00 | D99: =Квалификация!K686 -> 0
A100: =Квалификация!B688 -> 99 | B100: =Квалификация!D688 -> 64 | C100: =Квалификация!B693 -> 00:00:00 | D100: =Квалификация!K693 -> 0
A101: =Квалификация!B695 -> 100 | B101: =Квалификация!D695 -> 65 | C101: =Квалификация!B700 -> 00:00:00 | D101: =Квалификация!K700 -> 0

Sheet Финал
A2: № | B2: ='квалификация (итоги)'!A2 -> 34 | C2: команда | D2: ='квалификация (итоги)'!B2 -> verticalwork
A3: трасса | C3: 1 | H3: трасса | I3: 2
A4: время прохождения | D4: 00:17:23 | H4: время прохождения | K4: 00:12:36
A5: матрица штрафов | H5: матрица штрафов
A6: название | E6: время | F6: кол-во | H6: название | L6: время | M6: кол-во
A7: несобл. тактич. плана за участок | E7: 2.006944444 | H7: несобл. тактич. плана за участок | L7: 2.006944444
A8: срыв (однократ, нагр. суд. оттяж.) | E8: 00:02:00 | H8: срыв (однократ, нагр. суд. оттяж.) | L8: 00:02:00
A9: исп. ИТО на уч. свобод. лазания | E9: 00:05:00 | H9: исп. ИТО на уч. свобод. лазания | L9: 00:05:00
A10: нагр. суд. оттяж. многократное, но не более 3х раз | E10: 00:05:00 | H10: нагр. суд. оттяж. многократное, но не более 3х раз | L10: 00:05:00
A11: нарушение ТБ | E11: 00:05:00 | H11: нарушение ТБ | L11: 00:05:00
A12: повторное нарушение ТБ | E12: снятие | H12: повторное нарушение ТБ | L12: снятие
A13: невыполнение команды судей | E13: снятие | H13: невыполнение команды судей | L13: снятие
A14: оставл. снаряж. на трассе не оговор. подготовкой | E14: 00:02:00 | H14: оставл. снаряж. на трассе не оговор. подготовкой | L14: 00:02:00
A15: итоговое время трассы | D15: =IF(F12=0,IF(F13=0,(D4+E7*F7+E8*F8+E9*F9+E10*F10+E11*F11+E14*F14),"команда снята"),"команда снята") -> 00:17:23 | H15: итоговое время трассы | K15: =IF(M12=0,IF(M13=0,(K4+L7*M7+L8*M8+L9*M9+L10*M10+L11*M11+L14*M14),"команда снята"),"команда снята") -> 00:12:36
A16: итоговое время | D16: =IF(D15<>"Команда снята",IF(K15<>"Команда снята",D15+K15,"Команда снята"),"Команда снята") -> 00:29:59
A18: № | B18: ='квалификация (итоги)'!A3 -> 26 | C18: команда | D18: ='квалификация (итоги)'!B3 -> а/к МГУ
A19: трасса | C19: 1 | H19: трасса | I19: 2
A20: время прохождения | D20: 00:22:32 | H20: время прохождения | K20: 00:00:00
A21: матрица штрафов | H21: матрица штрафов
A22: название | E22: время | F22: кол-во | H22: название | L22: время | M22: кол-во
A23: несобл. тактич. плана за участок | E23: 2.006944444 | H23: несобл. тактич. плана за участок | L23: 2.006944444
A24: срыв (однократ, нагр. суд. оттяж.) | E24: 00:02:00 | F24: 1 | H24: срыв (однократ, нагр. суд. оттяж.) | L24: 00:02:00
A25: исп. ИТО на уч. свобод. лазания | E25: 00:05:00 | H25: исп. ИТО на уч. свобод. лазания | L25: 00:05:00
A26: нагр. суд. оттяж. многократное, но не более 3х раз | E26: 00:05:00 | H26: нагр. суд. оттяж. многократное, но не более 3х раз | L26: 00:05:00
A27: нарушение ТБ | E27: 00:05:00 | H27: нарушение ТБ | L27: 00:05:00
A28: повторное нарушение ТБ | E28: снятие | H28: повторное нарушение ТБ | L28: снятие
A29: невыполнение команды судей | E29: снятие | H29: невыполнение команды судей | L29: снятие
A30: оставл. снаряж. на трассе не оговор. подготовкой | E30: 00:02:00 | H30: оставл. снаряж. на трассе не оговор. подготовкой | L30: 00:02:00
A31: итоговое время трассы | D31: =IF(F28=0,IF(F29=0,(D20+E23*F23+E24*F24+E25*F25+E26*F26+E27*F27+E30*F30),"команда снята"),"команда снята") -> 00:24:32 | H31: итоговое время трассы | K31: =IF(M28=0,IF(M29=0,(K20+L23*M23+L24*M24+L25*M25+L26*M26+L27*M27+L30*M30),"команда снята"),"команда снята") -> 00:00:00
A32: итоговое время | D32: =IF(D31<>"Команда снята",IF(K31<>"Команда снята",D31+K31,"Команда снята"),"Команда снята") -> 00:24:32
A34: № | B34: ='квалификация (итоги)'!A4 -> 11 | C34: команда | D34: ='квалификация (итоги)'!B4 -> Королев
A35: трасса | C35: 1 | H35: трасса | I35: 2
A36: время прохождения | D36: 00:20:27 | H36: время прохождения | K36: 00:00:00
A37: матрица штрафов | H37: матрица штрафов
A38: название | E38: время | F38: кол-во | H38: название | L38: время | M38: кол-во
A39: несобл. тактич. плана за участок | E39: 2.006944444 | H39: несобл. тактич. плана за участок | L39: 2.006944444
A40: срыв (однократ, нагр. суд. оттяж.) | E40: 00:02:00 | F40: 1 | H40: срыв (однократ, нагр. суд. оттяж.) | L40: 00:02:00
A41: исп. ИТО на уч. свобод. лазания | E41: 00:05:00 | H41: исп. ИТО на уч. свобод. лазания | L41: 00:05:00
A42: нагр. суд. оттяж. многократное, но не более 3х раз | E42: 00:05:00 | H42: нагр. суд. оттяж. многократное, но не более 3х раз | L42: 00:05:00
A43: нарушение ТБ | E43: 00:05:00 | H43: нарушение ТБ | L43: 00:05:00
A44: повторное нарушение ТБ | E44: снятие | H44: повторное нарушение ТБ | L44: снятие
A45: невыполнение команды судей | E45: снятие | H45: невыполнение команды судей | L45: снятие
A46: оставл. снаряж. на трассе не оговор. подготовкой | E46: 00:02:00 | H46: оставл. снаряж. на трассе не оговор. подготовкой | L46: 00:02:00
A47: итоговое время трассы | D47: =IF(F44=0,IF(F45=0,(D36+E39*F39+E40*F40+E41*F41+E42*F42+E43*F43+E46*F46),"команда снята"),"команда снята") -> 00:22:27 | H47: итоговое время трассы | K47: =IF(M44=0,IF(M45=0,(K36+L39*M39+L40*M40+L41*M41+L42*M42+L43*M43+L46*M46),"команда снята"),"команда снята") -> 00:00:00
A48: итоговое время | D48: =IF(D47<>"Команда снята",IF(K47<>"Команда снята",D47+K47,"Команда снята"),"Команда снята") -> 00:22:27
A50: № | B50: ='квалификация (итоги)'!A5 -> 20 | C50: команда | D50: ='квалификация (итоги)'!B5 -> Стасон и я
A51: трасса | C51: 1 | H51: трасса | I51: 2
A52: время прохождения | D52: 00:23:57 | H52: время прохождения | K52: 00:00:00
A53: матрица штрафов | H53: матрица штрафов
A54: название | E54: время | F54: кол-во | H54: название | L54: время | M54: кол-во
A55: несобл. тактич. плана за участок | E55: 2.006944444 | H55: несобл. тактич. плана за участок | L55: 2.006944444
A56: срыв (однократ, нагр. суд. оттяж.) | E56: 00:02:00 | H56: срыв (однократ, нагр. суд. оттяж.) | L56: 00:02:00
A57: исп. ИТО на уч. свобод. лазания | E57: 00:05:00 | H57: исп. ИТО на уч. свобод. лазания | L57: 00:05:00
A58: нагр. суд. оттяж. многократное, но не более 3х раз | E58: 00:05:00 | H58: нагр. суд. оттяж. многократное, но не более 3х раз | L58: 00:05:00
A59: нарушение ТБ | E59: 00:05:00 | F59: 1 | H59: нарушение ТБ | L59: 00:05:00
A60: повторное нарушение ТБ | E60: снятие | H60: повторное нарушение ТБ | L60: снятие
A61: невыполнение команды судей | E61: снятие | H61: невыполнение команды судей | L61: снятие
A62: оставл. снаряж. на трассе не оговор. подготовкой | E62: 00:02:00 | H62: оставл. снаряж. на трассе не оговор. подготовкой | L62: 00:02:00
A63: итоговое время трассы | D63: =IF(F60=0,IF(F61=0,(D52+E55*F55+E56*F56+E57*F57+E58*F58+E59*F59+E62*F62),"команда снята"),"команда снята") -> 00:28:57 | H63: итоговое время трассы | K63: =IF(M60=0,IF(M61=0,(K52+L55*M55+L56*M56+L57*M57+L58*M58+L59*M59+L62*M62),"команда снята"),"команда снята") -> 00:00:00
A64: итоговое время | D64: =IF(D63<>"команда снята",IF(K63<>"команда снята",D63+K63,"Команда снята"),"Команда снята") -> 00:28:57

Sheet Финал (итоги)
A2: номер | B2: команда | C2: время | D2: место | E2: кол-во трасс
A3: =Финал!B2 -> 34 | B3: =Финал!D2 -> verticalwork | C3: =Финал!D16 -> 00:29:59 | D3: 1 | E3: 2
A4: =Финал!B18 -> 26 | B4: =Финал!D18 -> а/к МГУ | C4: =Финал!D32 -> 00:24:32 | D4: 3 | E4: 1
A5: =Финал!B34 -> 11 | B5: =Финал!D34 -> Королев | C5: =Финал!D48 -> 00:22:27 | D5: 2 | E5: 1
A6: =Финал!B50 -> 20 | B6: =Финал!D50 -> Стасон и я | C6: =Финал!D64 -> 00:28:57 | D6: 4 | E6: 1

Sheet Спонсоры
